Cogmind - Beta 16 @@@ ROGUE MODE // 2025.12.05 @ 14:06:10 Player: puppuppit Result: Destroyed by G-67 Veteran with Plasma Rifle Performance ------------- Evolutions (7) 3500 Regions Visited (36) 7200 Robots Destroyed (761) 3805 Value Destroyed (33287) 33287 Prototype IDs (221) 4420 Alien Tech Used (5) 1000 Bonus (23387) 23387 TOTAL SCORE: 76599 Bonus ------- Triggered High Security 500 High Alert Combat Kills 9382 Follower Combat Kills 3207 Entered Garrisons 1000 Used RIF Installer 500 Network Hubs Disabled 400 Met Data Miner 300 Used Data Conduit 3000 Met Imprinter 300 Acquired ECA 300 Met Zhirov 300 Built Enhanced Grunts 300 A7 Reached Mainframe 300 Met R17 at Cetus 500 Met R17 at Research 2000 Scanned by Researcher 500 Pursued by Intercept 2500 Friendly Fire -1902 Cogmind --------- Core Integrity 0/1300 Matter 30/300 Energy 99/100 System Corruption 3% Temperature Cool (0) Movement Core (50) Location -3/Garrison Parts ------- > --- POWER (2) -------- (None) > --- PROPULSION (8) --- Combat Antigrav System Combat Antigrav System > --- UTILITY (8) ------ Enhanced Optical Array Experimental Targeting Computer Advanced Target Analyzer Advanced Weapon Cycler Advanced System Shield > --- WEAPON (3) ------- (None) > --- INVENTORY (5) ---- Relay Coupler [Swarmer] (25) Immobilizer Core Cannon Advanced Remote Datajack Peak State ------------ > --- POWER ------------ Light Antimatter Reactor Particle Reactor > --- PROPULSION ------- Cooled Antigrav System Cooled Antigrav System Combat Antigrav System Combat Antigrav System Antigrav Array Antigrav Array > --- UTILITY ---------- High-capacity Storage Unit Advanced Trap Scanner Experimental Targeting Computer Advanced Target Analyzer Advanced Recoil Stabilizer Advanced Weapon Cycler Advanced System Shield Relay Coupler [Swarmer] > --- WEAPON ----------- Core Cannon Linear Accelerator > --- INVENTORY -------- Particle Reactor Improved Antigrav System Improved Antigrav System Cooled Antigrav System Matter Compressor Enhanced Optical Array Experimental Targeting Computer Advanced Shield Generator Relay Coupler [Swarmer] Relay Coupler [Grunt] Relay Coupler [Hunter] Phasing AFG Immobilizer Linear Accelerator Linear Accelerator Linear Accelerator Linear Accelerator Linear Accelerator Compact Tesla Bomb Launcher Advanced Remote Datajack [Rating: 175] Favorites ----------- Power Light Antimatter Reactor Engine Improved Ion Engine Power Core Nuclear Core Reactor Light Antimatter Reactor Propulsion Light Treads Treads Light Treads Leg Carbon-fiber Leg Wheel Wheel Hover Unit Antigrav System Flight Unit VTOL Module Utility Hacking Suite Device Gravity Neutralizer Storage High-capacity Storage Unit Processor Advanced Target Analyzer Hackware Hacking Suite Protection Layered Light Armor Plating Weapon Light Cannon Energy Gun Heavy EM Pulse Gun Energy Cannon EM Pulse Cannon Ballistic Gun Railgun Ballistic Cannon Light Cannon Launcher Heavy Shock Bomb Launcher Special Weapon Plasma Cutter Slashing Weapon Scythe Piercing Weapon Makeshift Spear Build | -11 -10 -10 -10 -9 -8 -8 -8 -8 -8 -7 -7 -7 -7 -7 -7 -6 -6 -6 -6 -6 -5 -5 -5 -5 -5 -5 -4 -4 -4 -4 -3 -3 -3 -3 -3 -3 ------- Run | Yrd Mat Min Exi Min Mat Gar Mat Gar Mat Fac Gar Fac Low Low Zio Pro Fac Low Low Dat Pro Fac Ext Cet Arc Hub Fac Upp Upp Zhi Pro Res Gar Res Qua Gar Slots Evolved 14 | . . . . . 4 . . . . 2 . . . . . . 2 . . . . 2 . . . . 2 . . . . 2 . . . . Power 1 | . . . . . . . . . . . . . . . . . . . . . . . . . . . . . . . . 1 . . . . Propulsion 6 | . . . . . 1 . . . . 1 . . . . . . 1 . . . . 1 . . . . 1 . . . . 1 . . . . Utility 6 | . . . . . 2 . . . . 1 . . . . . . 1 . . . . 1 . . . . 1 . . . . . . . . . Weapon 1 | . . . . . 1 . . . . . . . . . . . . . . . . . . . . . . . . . . . . . . . Parts Attached 534 | 7 9 5 1 2 16 11 9 14 35 49 34 46 3 6 5 8 44 1 12 2 10 14 34 2 9 17 43 5 2 . 4 27 30 11 7 . Power 66 | 1 1 1 . 1 2 3 2 3 5 3 5 4 1 2 . 1 3 . 2 . . 3 4 . . 1 4 . . . 1 6 7 . . . Engine 19 | 1 1 1 . 1 1 1 1 3 3 1 1 2 1 1 . . . . . . . . . . . . . . . . . . . . . . Core 26 | . . . . . 1 2 1 . 2 2 1 1 . 1 . 1 3 . 2 . . 3 4 . . . 1 . . . . . 1 . . . Reactor 21 | . . . . . . . . . . . 3 1 . . . . . . . . . . . . . 1 3 . . . 1 6 6 . . . Propulsion 163 | 2 . 2 . . 6 5 4 4 13 25 13 7 . 2 . 5 9 . 2 . 2 5 15 . 3 4 15 1 2 . 1 9 4 2 1 . Treads 43 | 2 . 2 . . 6 5 4 4 4 3 5 2 . . . 2 1 . . . . . 3 . . . . . . . . . . . . . Leg 15 | . . . . . . . . . . . 4 . . 1 . 3 . . . . . . 7 . . . . . . . . . . . . . Wheel 16 | . . . . . . . . . . 14 2 . . . . . . . . . . . . . . . . . . . . . . . . . Hover 80 | . . . . . . . . . 6 6 2 5 . 1 . . 8 . 2 . 2 5 3 . 3 2 15 1 2 . 1 9 4 2 1 . Flight 9 | . . . . . . . . . 3 2 . . . . . . . . . . . . 2 . . 2 . . . . . . . . . . Utility 169 | 2 3 . 1 . 3 1 2 2 8 12 10 21 . . 5 . 21 1 4 1 5 5 8 . 5 4 12 3 . . 2 9 9 6 4 . Device 58 | 1 . . . . 1 . . . 1 2 4 10 . . 2 . 10 1 . . 4 1 2 . 1 . 3 3 . . 1 1 6 1 3 . Storage 13 | 1 1 . 1 . . . . . . 2 1 2 . . . . . . 1 . . 1 . . . . 2 . . . . . . 1 . . Processor 40 | . . . . . . 1 . 1 2 . 4 7 . . 1 . 4 . 2 1 . 3 2 . . 1 5 . . . 1 2 1 1 1 . Hackware 42 | . 1 . . . 2 . 2 . 4 4 . 1 . . . . 6 . . . 1 . 3 . 4 2 2 . . . . 5 2 3 . . Protection 16 | . 1 . . . . . . 1 1 4 1 1 . . 2 . 1 . 1 . . . 1 . . 1 . . . . . 1 . . . . Artifact . | . . . . . . . . . . . . . . . . . . . . . . . . . . . . . . . . . . . . . Weapon 136 | 2 5 2 . 1 5 2 1 5 9 9 6 14 2 2 . 2 11 . 4 1 3 1 7 2 1 8 12 1 . . . 3 10 3 2 . Energy Gun 12 | 1 . . . . . . . . 3 . 1 1 . . . . . . . . . . . 1 . . . . . . . . 5 . . . Energy Cannon 5 | . . . . . . . . . 2 . . . . . . . . . . . . . . . . . 1 1 . . . . . . 1 . Ballistic Gun 49 | 1 . . . . 1 . . 2 2 5 4 7 . . . 2 8 . 2 1 . . 2 1 1 4 6 . . . . . . . . . Ballistic Cannon 43 | . 3 1 . 1 3 1 1 1 1 3 1 4 2 1 . . 2 . . . . . 2 . . 3 3 . . . . 3 4 2 1 . Launcher 18 | . 2 1 . . 1 . . 2 1 1 . 2 . 1 . . . . 2 . . . 2 . . 1 1 . . . . . . 1 . . Special Weapon 4 | . . . . . . 1 . . . . . . . . . . . . . . 1 . . . . . 1 . . . . . 1 . . . Impact Weapon . | . . . . . . . . . . . . . . . . . . . . . . . . . . . . . . . . . . . . . Slashing Weapon 3 | . . . . . . . . . . . . . . . . . . . . . 1 1 1 . . . . . . . . . . . . . Piercing Weapon 2 | . . . . . . . . . . . . . . . . . 1 . . . 1 . . . . . . . . . . . . . . . Special Melee Weapon . | . . . . . . . . . . . . . . . . . . . . . . . . . . . . . . . . . . . . . Unidentified Prototypes 13 | . . . . . 1 . . . . 1 1 2 . . . . 2 . . . 1 . . . . . . . . 1 . 1 . . 3 . Corrupted Parts 3 | . . . . . . . . . 1 . . . . . . 1 . . . . . . . . 1 . . . . . . . . . . . System Corruption 5 | . . . . . . . . . 3 . . . . . . 1 . . . . . . . . 1 . . . . . . . . . . . Parts Lost 190 | . . 1 . 1 1 3 . 9 14 23 14 10 3 3 . 3 14 . 3 7 2 2 8 1 2 17 14 1 2 . 1 4 14 2 9 2 Power 17 | . . . . 1 1 . . . 1 1 1 1 . 1 . . . . 1 1 . 1 . . . . 2 . . . . . 3 . 2 . Propulsion 94 | . . . . . . 1 . 4 6 17 5 3 1 2 . 3 4 . 1 4 1 . 8 . 2 9 6 1 2 . 1 2 3 1 5 2 Utility 34 | . . . . . . 1 . . 2 2 3 2 . . . . 6 . . 1 1 . . . . 4 5 . . . . . 5 1 1 . Weapon 45 | . . 1 . . . 1 . 5 5 3 5 4 2 . . . 4 . 1 1 . 1 . 1 . 4 1 . . . . 2 3 . 1 . Highest Loss Streak 11 | . . 1 . 1 1 1 . 6 5 5 5 3 2 1 . 3 5 . 3 7 2 2 3 1 2 11 3 1 2 . 1 2 6 1 8 2 To Critical Strikes 3 | . . . . . . . . . . . . . 1 . . . . . . . . . . 1 . . . . . . . 1 . . . . Average Backups 17 | . 10 14 15 19 18 19 19 19 15 13 12 24 18 19 20 19 18 19 19 17 5 9 14 13 13 13 10 19 19 18 20 17 17 19 16 4 Power 1 | . . 1 1 2 2 2 1 2 1 . . 1 . . . . . 1 1 . . 1 1 1 1 1 1 1 1 1 1 . 1 1 . . Propulsion 3 | . . 2 2 2 3 6 4 3 2 3 4 8 1 . . . 1 2 1 . . 1 2 3 1 . . 2 2 1 . 4 4 3 1 . Utility 7 | . 4 6 6 8 6 4 7 9 9 5 5 8 5 7 8 10 7 5 6 5 1 4 6 3 5 6 5 8 9 10 11 8 6 8 6 1 Weapon 5 | . 4 4 4 4 5 5 5 3 2 3 2 6 10 10 9 7 8 10 9 9 3 2 3 4 4 4 3 7 7 5 6 2 4 5 7 2 Tool/Special . | . . . . . . . . . . . . . . . . . . . . . . . . . . . . . . . . . . . . . Unused Backups 127 | . 6 . 1 4 5 2 7 4 9 9 4 12 1 1 1 . 3 . . 4 . 5 10 2 1 9 2 1 . 2 1 3 6 2 8 2 Power 15 | . . . 1 1 . 1 . 1 3 . . 2 . . . . . . . . . . 2 1 1 1 1 . . . . . . . . . Propulsion 15 | . 1 . . . 1 . 4 1 . . . 2 1 . . . 1 . . . . . 3 . . . . . . . . . 1 . . . Utility 74 | . 5 . . 3 4 1 1 2 6 6 4 5 . 1 1 . 1 . . 3 . 4 2 . . 6 1 1 . 1 1 3 5 1 5 1 Weapon 20 | . . . . . . . 2 . . 2 . 2 . . . . 1 . . 1 . 1 3 1 . 2 . . . 1 . . . 1 2 1 Tool/Special 3 | . . . . . . . . . . 1 . 1 . . . . . . . . . . . . . . . . . . . . . . 1 . Average Slot Usage (%) 90 | . 99 100 100 99 98 99 99 99 95 96 89 76 97 84 84 96 84 66 72 59 39 90 91 100 93 88 77 100 99 88 98 91 82 88 87 43 Engine 3 | . 14 14 14 13 4 4 2 9 8 3 . . 3 . 3 7 1 . . . . 1 . . . . . . . . . . . . . . Core 2 | . . . . . 4 4 6 . . 3 . 2 3 5 3 . 4 6 5 4 . 3 5 5 5 1 . . . . . . 1 . . . Reactor 1 | . . . . . . . . . . . 6 3 . . . . . . . . . . . . . 3 3 5 5 5 5 8 6 9 7 . Treads 11 | . 28 28 28 28 26 26 27 26 19 . 13 13 . . . 3 . . . . . . . . . . . . . . . . . . . . Leg 1 | . . . . . . . . . . . 3 . . 3 7 8 8 . . . . . 4 35 10 . . . . . . . . . . . Wheel 1 | . . . . . . . . . . 16 5 . . . . . . . . . . . . . . . . . . . . . . . . . Hover 11 | . . . . . . . . . 4 9 2 2 29 25 23 14 13 20 21 22 2 26 23 . 19 20 22 36 35 36 35 30 23 27 29 16 Device 6 | . 4 . . . . . . . 1 1 3 9 14 15 14 15 5 13 14 17 20 18 8 10 9 2 5 10 10 10 8 . 12 6 11 8 Storage 7 | . 14 14 14 14 9 9 9 9 6 5 7 7 7 7 7 7 6 6 6 5 . 3 5 5 5 4 3 5 5 5 5 4 4 4 3 . Processor 6 | . . . . . . 3 . . 1 . 9 5 15 15 15 15 6 . . 1 6 16 17 17 16 2 13 21 21 21 22 15 10 13 11 14 Hackware 13 | . 2 14 14 14 26 23 26 19 25 26 9 6 . . . . 17 6 4 . 1 . 6 . 3 28 15 5 5 5 5 16 6 10 8 4 Protection 1 | . 7 . . . . . . 6 . 2 3 . . . . . . . . 1 . . . 5 4 . . . . . . . . . . . Ballistic Gun 6 | . . . . . . . . 2 8 7 8 19 18 2 . . 8 13 18 2 . 4 8 1 6 8 9 14 15 4 14 2 . . . . Ballistic Cannon 12 | . 26 28 28 27 26 26 26 20 8 7 10 . 2 5 7 22 7 . . . . . 2 15 5 6 1 . . . . 10 9 12 12 . Peak Build Rating 175 | 9 10 13 14 16 27 27 31 30 34 50 74 79 63 62 54 63 93 88 91 80 54 78 87 79 93 91 122 126 124 124 124 161 159 163 175 76 Average Rating 57 | 6 8 12 13 14 23 24 29 28 29 37 46 71 60 51 52 56 67 87 87 56 30 67 73 76 83 77 87 123 123 105 121 146 149 152 150 71 On Entrance 64 | . 9 10 13 14 14 25 24 29 28 29 39 74 60 59 49 54 56 88 88 80 22 46 71 73 78 90 21 117 123 122 124 121 145 153 157 76 Avg Prop Armor Cover (%) 5 | . . . . . . . . . 21 3 3 . 2 9 8 5 3 . . 7 9 7 4 . 2 3 3 3 3 4 3 2 3 5 20 20 Naked Turns . | . . . . . . . . . . . . . . . . . . . . . . . . . . . . . . . . . . . . . Heaviest Build 171 | 12 31 31 51 52 59 62 63 67 65 74 165 171 61 59 61 75 77 61 72 60 10 47 73 76 73 62 79 82 78 78 78 113 117 113 111 2 Greatest Support 162 | 40 40 40 40 40 63 63 65 66 65 46 162 162 59 57 46 46 62 62 62 56 11 60 100 100 100 68 88 88 88 88 88 106 113 114 124 70 Greatest Overweight (x) 6 | . . . 1 1 1 1 1 1 1 4 2 1 1 2 1 6 1 1 1 2 3 1 1 . 1 1 1 1 1 1 1 2 1 2 5 . Average Overweight (x) . | . . . . 1 . . . . . . . . . 1 1 1 . . . . . . . . . . . . . . . . . . . . Largest Inventory Capacity 30 | 8 15 15 20 20 20 20 20 20 20 20 30 30 20 20 20 20 20 20 20 20 5 15 15 15 15 15 20 20 20 20 20 20 20 20 20 5 Average Capacity 18 | 7 13 15 18 20 20 20 20 20 16 15 15 29 20 20 20 20 20 20 20 18 5 11 15 15 15 14 13 20 20 20 20 20 20 20 19 5 Most Carried 30 | 1 15 15 17 20 20 20 20 20 20 20 30 30 20 20 20 20 20 20 20 20 5 15 15 15 15 15 20 20 20 20 20 20 20 20 20 5 Average Carried 18 | . 10 14 15 19 19 19 19 19 15 13 14 28 18 19 19 19 19 19 19 17 4 9 14 14 14 13 11 19 19 18 19 19 18 19 18 5 Final Capacity 30 | 8 15 15 20 20 20 20 20 20 5 20 30 20 20 20 20 20 20 20 20 20 5 15 15 15 15 5 20 20 20 20 20 20 20 20 5 5 Final Carried 29 | 1 15 15 17 20 20 20 20 20 5 20 29 19 20 20 20 20 20 20 20 20 5 15 15 14 15 5 19 19 18 20 20 20 20 20 5 5 Class Distribution -------------------- 28% | Hacker-Gunner 16% | Scavenger-Gunner 16% | Mutant 5% | Skirmisher 4% | Hacker-Mutant 4% | Scavenger-Mutant 4% | Scavenger-Skirmisher 4% | Hacker-Tank 3% | Hauler-Tank Dominant Class ---------------- Mutant | -10/Materials Mutant | -10/Mines Mutant | -10/Exiles Mutant | -9/Mines Hacker-Gunner | -8/Materials Hacker-Gunner | -8/Garrison Hacker-Gunner | -8/Materials Hacker-Tank | -8/Garrison Hacker-Gunner | -8/Materials Hacker-Gunner | -7/Factory Scavenger-Gunner | -7/Garrison Hauler-Tank | -7/Factory Scavenger-Skirmisher | -7/Lower Caves Mutant | -7/Lower Caves Mutant | -7/Zion Skirmisher | -6/Proximity Caves Hacker-Mutant | -6/Factory Skirmisher | -6/Lower Caves Skirmisher | -6/Lower Caves Scavenger-Scout | -6/Data Miner Mutant | -5/Proximity Caves Derelict-Mutant | -5/Factory Scavenger-Gunner | -5/Extension Scavenger-Gunner | -5/Cetus Scavenger-Gunner | -5/Archives Scavenger-Gunner | -5/Hub_04(d) Hacker-Gunner | -4/Factory Scavenger-Gunner | -4/Upper Caves Scavenger-Gunner | -4/Upper Caves Mutant | -4/Zhirov Gunner | -3/Proximity Caves Hacker-Gunner | -3/Research Scavenger-Gunner | -3/Garrison Bothacker-Gunner | -3/Research Commander-Gunner | -3/Quarantine Mutant | -3/Garrison Resources | -11 -10 -10 -10 -9 -8 -8 -8 -8 -8 -7 -7 -7 -7 -7 -7 -6 -6 -6 -6 -6 -5 -5 -5 -5 -5 -5 -4 -4 -4 -4 -3 -3 -3 -3 -3 -3 ----------- Run | Yrd Mat Min Exi Min Mat Gar Mat Gar Mat Fac Gar Fac Low Low Zio Pro Fac Low Low Dat Pro Fac Ext Cet Arc Hub Fac Upp Upp Zhi Pro Res Gar Res Qua Gar Matter Collected 33935 | 289 1322 331 10 229 1365 1080 1534 1319 1992 2259 2563 3037 583 396 77 461 2294 239 963 23 200 378 1226 300 421 1092 2319 171 190 102 488 1588 2076 625 393 . Remotely 1871 | . . . . . . . . . . . . . . . . . . . . . . . . . . . 794 . . . 91 . 986 . . . Salvage Created 30229 | 186 835 113 . 267 1670 797 1573 908 1965 2500 1993 2427 420 249 . 196 1670 161 419 . 59 861 2129 186 308 1352 2244 . 321 364 379 774 2253 450 200 . Parts 1391 | 13 61 11 . 30 88 52 60 71 95 128 85 130 19 7 . 4 79 . 10 . 9 42 93 8 21 50 108 . 7 6 9 16 63 9 7 . Haulers Intercepted 22 | . 2 . . . 6 . 5 . 3 1 . . . . . . . . . . . 1 . . . 1 1 . . . . 2 . . . . Recyclers Shooed 28 | . . . . . 1 . 1 . 2 8 . 1 . . . . 5 1 . . . 2 1 . . 1 4 . . . . 1 . . . . Parts Field Recycled . | . . . . . . . . . . . . . . . . . . . . . . . . . . . . . . . . . . . . . Retrieved Matter . | . . . . . . . . . . . . . . . . . . . . . . . . . . . . . . . . . . . . . Parts Self-Destructed 69 | . . . . . . . . . . . . . 21 7 . 3 . . 10 . 6 . . . . . . 4 9 1 8 . . . . . Prevented 6 | . . . . . . . . . . . . . . . . . . . . . 1 . . . . . . 2 3 . . . . . . . Parts Restored . | . . . . . . . . . . . . . . . . . . . . . . . . . . . . . . . . . . . . . Kills | -11 -10 -10 -10 -9 -8 -8 -8 -8 -8 -7 -7 -7 -7 -7 -7 -6 -6 -6 -6 -6 -5 -5 -5 -5 -5 -5 -4 -4 -4 -4 -3 -3 -3 -3 -3 -3 ------- Run | Yrd Mat Min Exi Min Mat Gar Mat Gar Mat Fac Gar Fac Low Low Zio Pro Fac Low Low Dat Pro Fac Ext Cet Arc Hub Fac Upp Upp Zhi Pro Res Gar Res Qua Gar Combat Hostiles Destroyed 519 | . 21 3 . 9 30 28 24 35 41 45 33 39 15 6 . 3 19 . 11 . 5 5 34 4 . 17 24 . 2 . 7 12 37 8 2 . Melee 4 | . . . . . . . . . . . . . . . . . 1 . . . . . 3 . . . . . . . . . . . . . Guns 120 | . . . . . . . . 1 8 16 4 29 6 . . . 5 . 5 . 1 5 13 1 . 3 14 . 2 . 3 1 3 . . . Cannons 243 | . 17 1 . 3 24 23 21 22 15 14 18 . 1 2 . 3 6 . . . . . 8 3 . 7 1 . . . . 11 34 8 1 . AOE 146 | . 4 2 . 6 6 5 3 12 18 15 11 10 8 4 . . 7 . 6 . 4 . 8 . . 3 9 . . . 4 . . . 1 . Classes Destroyed 25 | 3 6 . . 1 2 2 1 1 1 . 1 1 . 2 . . 1 . . . 1 . . . . 1 . . . . . . . . 1 . Worker 52 | 2 2 1 . 1 4 . 6 . 4 12 . 6 . . . . 3 . . . . 4 . . . 2 5 . . . . . . . . . Builder 24 | . 1 . . 2 3 . 1 . 1 4 . 5 . . . . 1 . . . . . 1 . . 1 4 . . . . . . . . . Tunneler 9 | 2 . 2 . . . . 1 . 1 1 . 1 . . . . . . . . . 1 . . . . . . . . . . . . . . Hauler 22 | . 2 . . . 6 . 5 . 3 1 . . . . . . . . . . . 1 . . . 1 1 . . . . 2 . . . . Recycler 61 | 1 3 . . 2 6 . 9 . 4 10 . 3 . . . . 7 . . . . 2 3 . . 2 7 . . . . 1 . . 1 . Mechanic 15 | . . . . . . . 1 1 4 2 2 4 . . . . . . . . . . . . . . . . . . . 1 . . . . Operator 22 | . 1 . . . 2 . 2 . 2 . . . . . . . . . . . . . 2 . 9 . . . . . . 2 . . 2 . Drone 1 | . . . . . . . . . . . . . . . . . . . . . 1 . . . . . . . . . . . . . . . Watcher 28 | . 3 . . . 4 . 2 . 5 1 . 1 . . . . 2 . . . . . . 2 . 2 6 . . . . . . . . . Swarmer 106 | . 6 2 . 7 7 6 . 10 2 6 7 1 8 . . . 3 . 2 . 4 . 7 . . 4 13 . . . . . 11 . . . Cutter 1 | . . . . . . . . . . . . . . . . . . . . . . . . . . 1 . . . . . . . . . . Saboteur 1 | . . . . . . . . . . . . . . . . . 1 . . . . . . . . . . . . . . . . . . . Grunt 216 | . 15 1 . 1 14 5 16 9 27 22 13 19 4 4 . . 4 . 6 . . 1 18 . . 5 . . 2 . 4 6 17 3 . . Brawler 18 | . . . . . 1 1 . 2 2 2 1 4 1 . . . . . 1 . . . . . . 2 . . . . 1 . . . . . Duelist 11 | . . . . 1 . . . 1 4 . 2 1 . . . . . . . . . . . . . 2 . . . . . . . . . . Protector 3 | . . . . . . . . . 1 1 . 1 . . . . . . . . . . . . . . . . . . . . . . . . Researcher 1 | . . . . . . . . . . . . . . . . . . . . . . . . . . . . . . . . . . . 1 . Sentry 70 | . . . . . 9 7 5 7 4 7 6 4 1 1 . . 2 . 1 . . 3 4 . . 1 1 . . . . 2 5 . . . Demolisher 1 | . . . . . . . . . . . 1 . . . . . . . . . . . . . . . . . . . . . . . . . Specialist 5 | . . . . . . . . 1 . . . 2 . . . . 2 . . . . . . . . . . . . . . . . . . . Hunter 31 | . . . . . . 4 3 2 1 1 3 3 . . . 1 4 . . . . . 3 . . 1 . . . . . 4 . 1 . . Programmer 41 | . . . . . . 4 . 3 . 6 1 4 1 . . 1 3 . 1 . . 1 . . . . 10 . . . 2 . 3 . 1 . Heavy 1 | . . . . . . . . . . . . 1 . . . . . . . . . . . . . . . . . . . . . . . . Behemoth 6 | . . . . . . . . . . . . . . 1 . 1 . . . . . . 2 . . . . . . . . . 1 1 . . Cetus Guard 4 | . . . . . . . . . . . . . . . . . . . . . . . . 4 . . . . . . . . . . . . Enhanced Grunt 1 | . . . . . . . . . . . . . . . . . . . . . . . . . . 1 . . . . . . . . . . Tracker 3 | . . . . . . . . . . . . . . . . . . . . . . . . . . 1 . . . . . . . 1 1 . Combat Programmer 2 | . . . . . . . . . . . . . . . . . . . . . . . . . . . . . . . . . . 2 . . Packrat 2 | . . . . . . . . . . . . . . . . . . 2 . . . . . . . . . . . . . . . . . . Samaritan 3 | . . . . . . . . . . . . . . 1 . . . . 2 . . . . . . . . . . . . . . . . . Thug 4 | . . . . . . 2 . . . . . . . . . 1 . . . . . . . . . . . . . . . . 1 . . . Infiltrator 1 | . . . . . . . . . . . . 1 . . . . . . . . . . . . . . . . . . . . . . . . Best Kill Streak 14 | 2 4 2 . 4 5 6 5 9 11 10 8 12 5 4 . 1 5 . 3 . 4 5 10 3 3 7 14 . 2 . 6 3 9 2 2 . Combat Bots Only 10 | . 3 2 . 4 5 6 3 9 10 7 8 7 5 4 . 1 4 . 3 . 4 3 10 2 . 5 7 . 2 . 6 2 9 2 1 . Max Kills in Single Turn 6 | 1 3 2 . 3 4 2 5 4 4 5 6 5 2 3 . 1 4 1 2 . 2 1 3 1 1 3 6 . 1 . 2 1 2 1 1 . Gunslinging 2 | . . . . . . . . . . . . . 1 . . . . . . . . . . . . . 2 . . . . . . . . . Exploded 5 | . 1 2 . 3 4 2 2 3 3 4 5 3 2 3 . . 3 . 2 . 2 . 3 . . 1 5 . . . 2 . . . 1 . Melee 1 | . . . . . . . . . . . . . . . . . 1 . . . . . 1 . . . . . . . . . . . . . Uniques/NPCs Destroyed . | . . . . . . . . . . . . . . . . . . . . . . . . . . . . . . . . . . . . . Combat | -11 -10 -10 -10 -9 -8 -8 -8 -8 -8 -7 -7 -7 -7 -7 -7 -6 -6 -6 -6 -6 -5 -5 -5 -5 -5 -5 -4 -4 -4 -4 -3 -3 -3 -3 -3 -3 -------- Run | Yrd Mat Min Exi Min Mat Gar Mat Gar Mat Fac Gar Fac Low Low Zio Pro Fac Low Low Dat Pro Fac Ext Cet Arc Hub Fac Upp Upp Zhi Pro Res Gar Res Qua Gar Hostile Shots Fired 2978 | . 75 22 . 31 82 93 75 147 163 308 216 246 48 32 . 36 196 . 84 23 18 17 75 30 6 140 207 4 10 . 21 97 251 43 135 47 Missed 1054 | . 25 8 . 8 20 31 28 31 46 126 89 89 23 9 . 10 75 . 31 9 9 3 18 4 2 52 97 1 4 . 11 34 89 12 39 21 Hits 1924 | . 50 14 . 23 62 62 47 116 117 182 127 157 25 23 . 26 121 . 53 14 9 14 57 26 4 88 110 3 6 . 10 63 162 31 96 26 Melee 22 | . . . . 1 1 . . 3 6 3 . . . . . . 1 . . . . . 1 . . 5 . . . . . . . . . 1 Projectile 1902 | . 50 14 . 22 61 62 47 113 111 179 127 157 25 23 . 26 120 . 53 14 9 14 56 26 4 83 110 3 6 . 10 63 162 31 96 25 AOE 12 | . . 2 . . . . . . . . 5 . . . . . 1 . . . . . 1 . . 1 2 . . . . . . . . . Critical Strikes 88 | . . 1 . . 2 5 2 4 8 10 6 4 2 . . 1 9 . 3 . . 3 . 6 . 5 5 . 1 . . 2 4 3 1 1 Part Disruptions 5 | . . . . . . . . . . . . . . . . 1 2 . . . . . 1 . . 1 . . . . . . . . . . Damage Taken 33931 | . 554 273 . 290 896 893 668 1721 1980 2305 1622 2786 368 327 . 461 1982 . 1034 652 151 387 941 610 142 2605 2042 66 114 . 265 1299 3363 718 1941 475 Core 4266 | . 48 10 . 51 69 59 44 96 225 200 129 251 14 18 . 84 170 . 211 339 31 53 103 12 . 401 390 23 . . 17 284 410 58 297 169 Absorbed by Shields 549 | . . . . . . . . . . . . . . . . . . . . . . . 396 125 . . . . . . . . 28 . . . Reduced by Siege Mode 4 | . . . . . . . . . . . . 4 . . . . . . . . . . . . . . . . . . . . . . . . Redirected to Shielding 269 | . 45 . . . . . . . . . . . . . . . 57 . . . . . . . . 65 . . . . . . 102 . . . Ignored by Resistances 150 | . . . . . . . . . 4 . 84 62 . . . . . . . . . . . . . . . . . . . . . . . . Regen/Repaired (Parts) 2795 | . 145 . . . 563 . 402 . 149 329 . 170 . . . . 47 . . . . 61 . . . . 156 . . . . 45 . 358 370 . Core Remaining (%) 40 | 100 . . . 56 . . . . 10 . . . . . . . . . . . 11 . . . . 43 . . . . 62 . . . . . Volleys Fired 1779 | 19 62 22 . 18 91 64 86 55 104 130 169 130 27 15 1 23 89 8 37 . 4 12 63 14 27 60 107 9 7 5 15 72 167 43 24 . Largest 3 | 2 2 2 . 2 3 3 3 3 3 3 3 3 3 3 1 3 3 2 3 . 1 1 3 3 3 3 3 3 3 2 3 3 3 3 3 . Hottest 240 | 60 60 60 . 63 97 104 107 104 137 135 157 115 96 107 55 132 132 60 105 . 43 33 113 240 150 145 143 105 105 70 119 164 204 162 162 . Shots Fired 4114 | 38 121 43 . 35 268 168 249 133 252 325 266 348 64 24 1 41 208 16 99 . 4 12 152 40 66 140 223 13 24 9 50 194 359 79 50 . Gun 1857 | 38 . . . . . . . 12 138 192 148 331 49 7 . . 159 16 87 . 2 12 109 3 48 61 200 4 24 9 46 22 140 . . . Cannon 2102 | . 116 42 . 31 264 163 246 114 89 119 114 9 9 15 1 41 43 . 4 . . . 38 37 18 70 20 9 . . . 170 212 60 48 . Launcher 138 | . 5 1 . 4 4 5 3 7 25 14 4 8 6 2 . . 6 . 8 . 2 . 5 . . 9 2 . . . 4 2 . 10 2 . Special 17 | . . . . . . . . . . . . . . . . . . . . . . . . . . . 1 . . . . . 7 9 . . Kinetic 3604 | 19 116 42 . 31 264 163 246 126 172 226 244 327 58 22 1 41 202 16 91 . 2 12 147 39 53 131 218 4 24 9 46 192 212 60 48 . Thermal 195 | . . . . . . . . . . . 18 13 . . . . . . . . . . . 1 13 . 1 9 . . . . 140 . . . Explosive 118 | . 5 1 . 4 4 5 3 7 25 14 4 8 6 2 . . 6 . 8 . 2 . 3 . . 3 2 . . . 4 2 . . . . Electromagnetic 181 | 19 . . . . . . . . 55 85 . . . . . . . . . . . . 2 . . 6 2 . . . . . . 10 2 . Robot Hit Streak 34 | 6 11 5 . 9 18 17 14 12 15 16 34 13 6 6 . 4 10 8 8 . 1 4 21 20 10 12 11 1 12 6 8 17 23 11 8 . Robot Miss Streak 10 | 2 4 4 . 10 4 9 8 7 5 10 6 4 7 4 . 5 6 2 5 . 1 2 2 1 3 5 6 1 1 1 2 4 5 2 3 . Penetration Max 1 | . . . . . . . . . . 1 1 . . . . . 1 . 1 . . 1 1 1 1 1 1 . 1 . . . . . . . Secondary Targets 13 | . . . . . . . . . 1 . . 4 1 . . . . . 1 . . . 1 . . 1 4 . . . . . . . . . Max Gunslinging Chain 2 | . . . . . . . . . 1 . . 1 1 . . . . . 1 . . . 1 . . 1 2 . . . . . . . . . Shots Hit Robots 2516 | 23 65 22 . 14 153 86 168 96 152 195 190 211 34 20 . 25 134 9 51 1 1 20 122 30 42 70 131 1 15 8 22 107 235 40 23 . Core Hits 1713 | 9 36 13 . 13 80 74 149 100 161 155 159 129 36 14 . 14 89 4 34 . 5 16 80 16 19 55 72 . 7 5 15 38 92 17 7 . Critical Kills 31 | . . . . . . . . . . 1 5 1 . . . . 3 . 1 . 1 6 2 . 2 . 7 . 1 . 1 . . . . . Critical Parts Destroyed 34 | . . . . . . . . . 1 1 1 . . . . . 11 . . . . 2 3 . 3 1 5 . 3 . 2 1 . . . . Critical Strikes 201 | 2 5 2 . . 8 4 3 . 2 12 11 1 . . . 4 18 . 1 . 1 9 14 2 6 2 13 . 4 1 3 23 43 2 5 . Burn 17 | . . . . . . . . . . . . . . . . . . . . . . . . . . . . . . . . . 17 . . . Destroy 69 | . . . . . . . . . 1 2 6 1 . . . . 16 . 1 . 1 8 5 . 5 1 13 . 4 1 3 1 . . . . Blast 108 | . 5 2 . . 8 4 3 . . 8 5 . . . . 4 2 . . . . . 8 2 1 1 . . . . . 22 26 2 5 . Corrupt 5 | 2 . . . . . . . . 1 2 . . . . . . . . . . . . . . . . . . . . . . . . . . Sever 2 | . . . . . . . . . . . . . . . . . . . . . . 1 1 . . . . . . . . . . . . . Melee Attacks 40 | . . . . . . . . . . . . . . . . . 4 . . 1 . 17 18 . . . . . . . . . . . . . Impact . | . . . . . . . . . . . . . . . . . . . . . . . . . . . . . . . . . . . . . Slashing 34 | . . . . . . . . . . . . . . . . . . . . . . 16 18 . . . . . . . . . . . . . Piercing 6 | . . . . . . . . . . . . . . . . . 4 . . 1 . 1 . . . . . . . . . . . . . . Sneak Attacks 14 | . . . . . . . . . . . . . . . . . . . . 1 . 9 4 . . . . . . . . . . . . . Combat Hostiles 2 | . . . . . . . . . . . . . . . . . . . . . . 1 1 . . . . . . . . . . . . . Follow-up Attacks 1 | . . . . . . . . . . . . . . . . . . . . . . 1 . . . . . . . . . . . . . . Damage Inflicted 86372 | 242 1539 559 . 593 3537 2413 3871 2817 6168 7307 5543 6052 1349 854 . 730 4129 179 1992 70 298 779 5577 1235 1322 3877 5809 30 449 216 1302 4363 8409 1612 1150 . Guns 26923 | 242 . . . . . . . 105 1175 2212 2551 3900 564 108 . . 1820 179 1094 . 7 77 2668 58 915 738 4173 30 449 216 598 316 2728 . . . Cannons 35700 | . 1211 448 . 305 3000 1701 3142 1764 1717 2531 1891 102 97 343 . 730 707 . . . . . 989 1177 407 1160 162 . . . . 4047 5618 1378 1073 . Explosions 22117 | . 325 111 . 288 512 712 729 948 3267 2562 1101 2050 688 403 . . 1602 . 898 . 291 . 1238 . . 1979 1398 . . . 704 . . 234 77 . Melee 1447 | . . . . . . . . . . . . . . . . . . . . 70 . 702 675 . . . . . . . . . . . . . Ramming 185 | . 3 . . . 25 . . . 9 2 . . . . . . . . . . . . 7 . . . 76 . . . . . 63 . . . Kinetic 57236 | 77 1211 448 . 305 3000 1701 3142 1869 2129 3971 4011 3835 661 451 . 730 2527 179 1094 . 7 77 3657 1235 1036 1898 4260 30 449 216 598 4363 5618 1378 1073 . Thermal 5796 | . . . . . . . 470 . 236 620 431 167 . . . . 201 . . . . . 298 . 286 . 359 . . . . . 2728 . . . Explosive 17362 | . 325 111 . 288 512 712 259 948 3031 1942 1101 2050 688 403 . . 1365 . 898 . 291 . 423 . . 272 1039 . . . 704 . . . . . Electromagnetic 4346 | 165 . . . . . . . . 763 772 . . . . . . 36 . . . . . 517 . . 1707 75 . . . . . . 234 77 . Impact . | . . . . . . . . . . . . . . . . . . . . . . . . . . . . . . . . . . . . . Slashing 1377 | . . . . . . . . . . . . . . . . . . . . . . 702 675 . . . . . . . . . . . . . Piercing 70 | . . . . . . . . . . . . . . . . . . . . 70 . . . . . . . . . . . . . . . . Highest Corruption 23 | . . . . . . . 3 6 9 21 21 23 22 22 22 1 17 17 17 17 17 . . . 1 11 11 11 11 11 13 . . 7 7 3 Average Corruption 13 | . . . . . . . 2 5 6 9 21 20 21 22 22 1 6 17 16 17 17 . . . 1 7 4 11 11 11 11 . . 5 4 3 Corruption Purged 14 | . . . . . . . . . . . . 5 . . . . 3 . . . . . . . 1 . . . . . . . . . 5 . Corruption Blocked . | . . . . . . . . . . . . . . . . . . . . . . . . . . . . . . . . . . . . . Effects 956 | . . . . . . . 30 56 59 57 144 161 71 78 3 3 20 40 88 3 11 . . . . 3 25 29 31 5 24 . . 5 10 . Message Errors 229 | . . . . . . . 11 16 15 16 31 32 19 18 2 3 3 3 27 . . . . . . . 2 8 8 2 9 . . . 4 . Matter Fused 193 | . . . . . . . 5 13 15 10 29 24 17 18 . . 7 12 14 1 3 . . . . . 4 4 8 2 3 . . 1 3 . Heat Flow Errors 112 | . . . . . . . 2 6 6 5 17 26 11 11 . . 2 2 11 1 2 . . . . . 2 2 1 . 3 . . 1 1 . Energy Discharges 103 | . . . . . . . 5 6 8 6 16 24 3 2 . . 2 6 8 . 2 . . . . . 3 8 1 . 2 . . . 1 . Parts Rejected 8 | . . . . . . . 1 1 . . 1 1 . 1 . . . . 1 . 1 . . . . . 1 . . . . . . . . . Parts Fused 10 | . . . . . . . . . . 1 2 . 2 3 . . . . 1 . . . . . . . . 1 . . . . . . . . Data Loss (minor) 113 | . . . . . . . 3 3 8 4 22 17 7 14 1 . 3 9 7 1 1 . . . . . 5 2 4 . 1 . . 1 . . Data Loss (major) 66 | . . . . . . . 1 3 4 8 6 13 2 5 . . . 7 8 . 1 . . . . 1 . 1 4 . 1 . . . 1 . Misfires 42 | . . . . . . . 1 1 1 3 5 6 1 2 . . . . 7 . . . . . . . 3 2 4 . 5 . . 1 . . Alerts 25 | . . . . . . . . 4 1 1 5 4 3 2 . . . 1 2 . . . . . . . 1 1 . . . . . . . . Misdirections 10 | . . . . . . . . . . 2 . 2 . . . . 3 . . . 1 . . . . 2 . . . . . . . . . . Weapon Failures 45 | . . . . . . . 1 3 1 1 10 12 6 2 . . . . 2 . . . . . . . 4 . 1 1 . . . 1 . . Overload Shots 1 | . . . . . . . . . . . . . . . . . . . . . . . . 1 . . . . . . . . . . . . Effects 1 | . . . . . . . . . . . . . . . . . . . . . . . . 1 . . . . . . . . . . . . Energy Bleed 1 | . . . . . . . . . . . . . . . . . . . . . . . . 1 . . . . . . . . . . . . Overflow Damage 1680 | . 33 20 . 14 2 16 49 63 113 178 52 92 37 59 . 9 96 . . . . 65 88 . 6 78 244 . . . 31 70 228 . 37 . Projectiles 644 | . 23 20 . . 2 16 6 . . 63 26 . . 3 . 9 84 . . . . . 6 . 6 30 15 . . . . 70 228 . 37 . Explosions 898 | . 10 . . 14 . . 43 63 113 115 26 92 37 56 . . 12 . . . . . 9 . . 48 229 . . . 31 . . . . . Melee 138 | . . . . . . . . . . . . . . . . . . . . . . 65 73 . . . . . . . . . . . . . Knockbacks 339 | . 10 6 . 3 21 13 45 38 38 20 25 . . . . 2 3 . . . . . 2 . 3 14 1 . . . . 24 43 11 17 . Impact 2 | . . . . . . . . . 1 . . . . . . . . . . . . . . . . . 1 . . . . . . . . . Kinetic 312 | . 9 5 . 3 21 13 43 37 35 20 24 . . . . 2 3 . . . . . 2 . 3 12 . . . . . 20 36 10 14 . Secondary 25 | . 1 1 . . . . 2 1 2 . 1 . . . . . . . . . . . . . . 2 . . . . . 4 7 1 3 . Self-Inflicted Damage 1145 | . 52 40 . 47 . 64 . 30 42 134 177 63 . . . . 31 . 72 . . . 58 . . 102 37 . . . 69 39 31 23 34 . Shots 37 | . 3 1 . 2 . 2 . 3 1 3 8 2 . . . . 2 . 2 . . . 1 . . 2 . . . . 1 1 . 1 2 . Rammed 14 | . 1 . . . 2 . . . 2 1 . . . . . . . . . . . . . . . . 6 . . . . . 2 . . . Targets Rammed 15 | . 1 . . . 2 . . . 2 1 . . . . . . . . . . . . 1 . . . 6 . . . . . 2 . . . Kicked 1 | . . . . . . . . . . . . . . . . . . . . . . . 1 . . . . . . . . . . . . . Crushed . | . . . . . . . . . . . . . . . . . . . . . . . . . . . . . . . . . . . . . Highest Temperature 406 | 40 54 57 . 45 168 126 246 298 247 328 353 279 265 276 2 375 135 203 406 92 203 28 238 118 252 284 346 298 194 11 182 303 378 231 234 . Average Temperature 72 | 20 17 16 . 9 37 38 54 101 62 70 115 92 72 94 1 69 32 93 108 58 87 9 66 59 87 64 82 116 90 11 71 80 57 73 50 . Received Heat Transfer 7321 | . 195 102 . 60 384 81 315 621 927 666 459 624 24 96 . 354 300 . 300 . 27 36 183 36 9 105 455 18 36 . 9 142 520 18 132 87 Effects 37 | . . . . . . . 1 3 3 2 12 1 1 . . 1 . . 3 . . . . . 1 2 2 . . . . . 4 1 . . Energy Bleed 12 | . . . . . . . 1 . . 1 . 1 . . . 1 . . 3 . . . . . 1 1 1 . . . . . 1 1 . . Interference 23 | . . . . . . . . 3 3 1 11 . 1 . . . . . . . . . . . . 1 . . . . . . 3 . . . Short Circuit 1 | . . . . . . . . . . . 1 . . . . . . . . . . . . . . . . . . . . . . . . . Damage (minor) 1 | . . . . . . . . . . . . . . . . . . . . . . . . . . . 1 . . . . . . . . . Siege Activations 1 | . . . . . . . . . . . . 1 . . . . . . . . . . . . . . . . . . . . . . . . Total Turns 3 | . . . . . . . . . . . . 3 . . . . . . . . . . . . . . . . . . . . . . . . Longest Duration 3 | . . . . . . . . . . . . 3 . . . . . . . . . . . . . . . . . . . . . . . . Martial Activations . | . . . . . . . . . . . . . . . . . . . . . . . . . . . . . . . . . . . . . Shielding Activations . | . . . . . . . . . . . . . . . . . . . . . . . . . . . . . . . . . . . . . Robots Disrupted . | . . . . . . . . . . . . . . . . . . . . . . . . . . . . . . . . . . . . . Combat Hostiles . | . . . . . . . . . . . . . . . . . . . . . . . . . . . . . . . . . . . . . Robots Corrupted 8 | . . . . . . . . . . . . . . . . . . . . . . . 2 . . 5 . . . . . . . . 1 . Combat Hostiles 6 | . . . . . . . . . . . . . . . . . . . . . . . 2 . . 4 . . . . . . . . . . Parts Fried 23 | . . . . . . . . . . 1 . 4 . . . . . . . . . . 2 . . 12 . . . . . . 2 . 2 . Impact Corruptions 4 | . . . . . . . . . . . . . . . . . . . . . . . . . . . . . . . . . 3 . 1 . Robots Melted 2 | . . . . . . . . . . . . . . . . . . . . . . . . . . . . . . . . . 2 . . . Combat Hostiles . | . . . . . . . . . . . . . . . . . . . . . . . . . . . . . . . . . . . . . Parts Melted 22 | . . . . . . . . . . . 1 1 . . . . . . . . . . . . 4 . . . . . . . 16 . . . Heat Transferred 8707 | . . . . . . . 300 . 339 550 900 333 . . . . 150 . . . . . 150 . 333 . 250 . . . . . 5402 . . . Parts Sabotaged 5 | . . . . . . . . . . . . . . . . . 2 . . . . . . . . 3 . . . . . . . . . . Parts Stolen . | . . . . . . . . . . . . . . . . . . . . . . . . . . . . . . . . . . . . . Parts Stripped . | . . . . . . . . . . . . . . . . . . . . . . . . . . . . . . . . . . . . . Power Chain Reactions 7 | . . . . . . . . . 3 3 . . . . . . . . . . . . . . . 1 . . . . . . . . . . Alert | -11 -10 -10 -10 -9 -8 -8 -8 -8 -8 -7 -7 -7 -7 -7 -7 -6 -6 -6 -6 -6 -5 -5 -5 -5 -5 -5 -4 -4 -4 -4 -3 -3 -3 -3 -3 -3 ------- Run | Yrd Mat Min Exi Min Mat Gar Mat Gar Mat Fac Gar Fac Low Low Zio Pro Fac Low Low Dat Pro Fac Ext Cet Arc Hub Fac Upp Upp Zhi Pro Res Gar Res Qua Gar Maximum Alert Level 5 | . 2 . . . 2 5 3 5 5 4 5 5 . . . . 2 . . . . . 4 3 2 4 4 . . . . 1 5 4 3 1 Low Security (%) 27 | 100 35 100 . 100 32 . 57 . . . . . . . . . 58 . . . . 100 11 . . 13 . . . . . 89 8 . . . Level 1 12 | . 60 . . . 61 4 3 7 . . . . . . . . 27 . . . . . 10 . 14 24 1 . . . . 10 7 . 23 100 Level 2 15 | . 3 . . . 6 8 35 23 . . . . . . . . 13 . . . . . 58 23 85 43 81 . . . . . 13 . 71 . Level 3 13 | . . . . . . 37 2 24 24 53 8 5 . . . . . . . . . . 6 76 . 14 16 . . . . . 28 10 5 . Level 4 25 | . . . . . . 37 . 41 67 46 45 87 . . . . . . . . . . 13 . . 3 . . . . . . 33 89 . . Level 5 5 | . . . . . . 11 . 4 8 . 46 . . . . . . . . . . . . . . . . . . . . . 8 . . . High Security . | . . . . . . . . . . . . 7 . . . . . . . . . . . . . . . . . . . . . . . . Max Security . | . . . . . . . . . . . . . . . . . . . . . . . . . . . . . . . . . . . . . Peak Influence 2641 | 10 446 103 . 138 545 1728 842 1770 1677 1276 2641 2269 . . . . 580 . . . . 159 1247 828 529 1311 1100 . . . . 330 1827 1432 723 282 Initial 1386 | . . 98 . . 20 274 842 339 862 761 798 1386 . . . . 150 . . . . 159 30 672 315 174 637 . . . . 55 . 1027 686 282 Average 705 | 1 187 30 . 32 232 1115 237 991 1231 1028 1665 1396 . . . . 171 . . . . 104 518 741 474 496 594 . . . . 128 957 1208 443 277 Influence Increases 28528 | 25 781 241 . 298 1421 1484 995 1521 1970 1997 1983 2267 444 145 . 144 1242 . 280 . 155 455 1980 306 334 2296 1411 15 70 5 235 847 2027 792 362 . Destroy 0b10 Robot/C 12000 | . 420 160 . 200 740 600 480 700 800 960 660 1100 340 120 . 80 380 . 220 . 80 100 1040 140 80 460 480 . 40 . 140 240 900 260 80 . Destroy 0b10 Robot/NC 1350 | 25 60 15 . 25 130 . 135 15 125 160 65 125 . . . 15 65 . 10 . 5 40 45 10 45 45 115 . . 5 . 30 30 . 10 . Destroy Leader 2136 | . 100 30 . 30 202 40 154 40 176 224 30 266 30 20 . 30 94 . 20 . 10 32 124 . . 126 104 . . . 20 64 70 80 20 . Allied During Kill 1628 | . . 11 . 11 106 18 . . . 68 4 128 29 5 . 19 . . . . . . 396 73 125 247 . . . . . . 145 215 28 . Trap Triggered on 0b10 20 | . . . . . 20 . . . . . . . . . . . . . . . . . . . . . . . . . . . . . . . Successful Hack 1351 | . 18 . . . 33 27 29 28 13 94 12 82 . . . . 84 . . . . 116 46 . . 56 115 . . . . 305 57 108 128 . Select Force Hacks 180 | . 30 . . . 60 . 90 . . . . . . . . . . . . . . . . . . . . . . . . . . . . . Disable Machine 1680 | . 15 . . 15 60 30 60 30 120 195 15 135 . . . . 120 . . . . 15 75 15 60 450 120 . . . . 30 15 45 60 . Anti-Garrison Action 2900 | . . . . . . 700 . 650 . . 1100 . . . . . . . . . . . . . . 150 . . . . . . 300 . . . Destroy Structure 2493 | . 48 10 . 17 40 39 47 43 196 221 82 146 . . . . 139 . . . . 2 134 68 24 582 222 . . . . 148 165 84 36 . Advance Influence 300 | . . . . . . . . . . . . . . . . . 150 . . . . 150 . . . . . . . . . . . . . . Partial Spotted 225 | . . 15 . . . . . . . 15 . . . . . . 75 . . . . . 30 . . 15 45 . . . . 30 . . . . Lose Combat Pursuer 2265 | . 90 . . . 30 30 . 15 540 60 15 285 45 . . . 135 . 30 . 60 . 90 . . 165 210 15 30 . 75 . 345 . . . Influence Decreases 28266 | 25 528 470 24 246 1050 179 2201 273 2066 2531 482 2639 1408 884 566 144 1049 193 231 49 140 406 843 719 623 1495 1645 767 362 27 152 930 200 1398 1207 114 Entered New Map 10588 | . . 155 24 . 32 149 886 183 908 913 342 1255 840 249 566 . . 72 . 49 . 6 34 529 473 325 663 395 61 22 . 28 . 800 535 94 Time Decay 10003 | 25 378 305 . 236 495 . 705 . 568 658 . 714 538 565 . 124 529 121 201 . 120 380 469 180 130 380 502 362 291 5 142 420 . 238 222 . Lost Part 1790 | . . 10 . 10 10 30 . 90 140 230 140 100 30 30 . . 140 . 30 . 20 20 80 10 20 170 140 10 10 . 10 40 140 20 90 20 Lost Ally 1482 | . . . . . 40 . 10 . . 130 . 420 . 40 . 20 80 . . . . . 260 . . 170 40 . . . . 112 60 40 60 . Purge Threat 4403 | . 150 . . . 473 . 600 . 450 600 . 150 . . . . 300 . . . . . . . . 450 300 . . . . 330 . 300 300 . Squads Dispatched 172 | . 5 1 . . 6 . 11 . 11 18 . 44 . . . . 16 . 1 . . 5 5 . . 16 14 . . . . 10 . 3 6 . Investigation 35 | . 4 1 . . 4 . 5 . 1 3 . 5 . . . . 2 . 1 . . . . . . 3 3 . . . . 3 . . . . Extermination 23 | . . . . . . . . . . 6 . 5 . . . . 4 . . . . 1 . . . 2 3 . . . . . . 1 1 . Reinforcement 48 | . 1 . . . 1 . 6 . 2 4 . 14 . . . . 7 . . . . . 1 . . 3 2 . . . . 4 . 1 2 . Assault 41 | . . . . . . . . . 8 4 . 15 . . . . . . . . . . 4 . . 5 5 . . . . . . . . . Garrison 18 | . . . . . 1 . . . . 1 . 5 . . . . 3 . . . . 3 . . . 2 1 . . . . . . . 2 . Intercept 7 | . . . . . . . . . . . . . . . . . . . . . . 1 . . . 1 . . . . . 3 . 1 1 . Searches Triggered . | . . . . . . . . . . . . . . . . . . . . . . . . . . . . . . . . . . . . . Unchained Authorized 3 | . . . . . . . . . . 1 . . . . . . 1 . . . . . . . . . 1 . . . . . . . . . Construction Impeded 12 | . . . . . . . 2 . 2 3 . 2 . . . . 1 . . . . . 1 . . . 1 . . . . . . . . . Haulers Reinforced 6 | . . . . . . . . . . 1 . . . . . . 2 . . . . . . . . . . . . . . 3 . . . . Active Scanning Responses . | . . . . . . . . . . . . . . . . . . . . . . . . . . . . . . . . . . . . . Cargo Convoy Interrupts 2 | . . . . . . . . . . . . 1 . . . . 1 . . . . . . . . . . . . . . . . . . . Stealth | -11 -10 -10 -10 -9 -8 -8 -8 -8 -8 -7 -7 -7 -7 -7 -7 -6 -6 -6 -6 -6 -5 -5 -5 -5 -5 -5 -4 -4 -4 -4 -3 -3 -3 -3 -3 -3 --------- Run | Yrd Mat Min Exi Min Mat Gar Mat Gar Mat Fac Gar Fac Low Low Zio Pro Fac Low Low Dat Pro Fac Ext Cet Arc Hub Fac Upp Upp Zhi Pro Res Gar Res Qua Gar Distress Signals 36 | . 1 . . . 4 . 3 . 4 3 . 3 . . . . 1 . . . . . 1 2 . 6 6 . . . . 2 . . . . Communications Jammed . | . . . . . . . . . . . . . . . . . . . . . . . . . . . . . . . . . . . . . Distress Signals . | . . . . . . . . . . . . . . . . . . . . . . . . . . . . . . . . . . . . . Times Spotted 994 | . 31 18 . 10 46 30 28 36 96 62 38 110 17 5 . 6 49 . 16 4 13 8 75 9 12 50 57 3 3 . 8 32 66 13 23 20 Peak Tracking Total 22 | . 6 12 . 4 5 6 3 8 14 9 6 12 7 4 . 2 10 . 7 4 6 2 12 5 2 15 8 4 2 . 6 8 12 4 15 22 Tactical Retreats 72 | . 5 . . . 1 2 . 1 11 3 1 8 1 . . . 5 . 1 . 3 . 3 . . 5 8 1 1 . 2 . 10 . . . Traps | -11 -10 -10 -10 -9 -8 -8 -8 -8 -8 -7 -7 -7 -7 -7 -7 -6 -6 -6 -6 -6 -5 -5 -5 -5 -5 -5 -4 -4 -4 -4 -3 -3 -3 -3 -3 -3 ------- Run | Yrd Mat Min Exi Min Mat Gar Mat Gar Mat Fac Gar Fac Low Low Zio Pro Fac Low Low Dat Pro Fac Ext Cet Arc Hub Fac Upp Upp Zhi Pro Res Gar Res Qua Gar Traps Triggered 37 | . 3 . . . . 4 2 7 1 . 4 2 . . . . 3 . . . . . . . . 3 . . . . . . 7 . . 1 Indirectly 4 | . . . . . . . . . . . . . . . . . 1 . . . . . . . . 3 . . . . . . . . . . Trap Hack Attempts . | . . . . . . . . . . . . . . . . . . . . . . . . . . . . . . . . . . . . . Triggered . | . . . . . . . . . . . . . . . . . . . . . . . . . . . . . . . . . . . . . Disarmed 19 | . . . . . . . . . . 6 . . . . . . 6 . . . . . 4 . . . . . . . . 2 . . 1 . Reprogrammed 30 | . . . . . 17 . 2 . . 7 . . . . . . . . . . . . . . . 4 . . . . . . . . . . Reused 2 | . . . . . 2 . . . . . . . . . . . . . . . . . . . . . . . . . . . . . . . Traps Extracted . | . . . . . . . . . . . . . . . . . . . . . . . . . . . . . . . . . . . . . Installed . | . . . . . . . . . . . . . . . . . . . . . . . . . . . . . . . . . . . . . Triggered 2 | . . . . . 2 . . . . . . . . . . . . . . . . . . . . . . . . . . . . . . . Objects Rigged 2 | . . . . . . . . . . . . . . . . . . . . . . . . . . 2 . . . . . . . . . . Exploded 1 | . . . . . . . . . . . . . . . . . . . . . . . . . . 1 . . . . . . . . . . Machines | -11 -10 -10 -10 -9 -8 -8 -8 -8 -8 -7 -7 -7 -7 -7 -7 -6 -6 -6 -6 -6 -5 -5 -5 -5 -5 -5 -4 -4 -4 -4 -3 -3 -3 -3 -3 -3 ---------- Run | Yrd Mat Min Exi Min Mat Gar Mat Gar Mat Fac Gar Fac Low Low Zio Pro Fac Low Low Dat Pro Fac Ext Cet Arc Hub Fac Upp Upp Zhi Pro Res Gar Res Qua Gar Machines Disabled 142 | . 2 . . 1 4 8 4 9 8 13 9 9 . . . . 8 . 1 . . 1 5 1 4 31 8 . . 1 . 2 6 3 4 . Max in Single Turn 15 | . 1 . . 1 1 1 2 1 4 4 2 2 . . . . 5 . 1 . . 1 2 1 1 15 2 . . 1 . 1 1 1 1 . Garrison Access 4 | . . . . . . . . . . . . 1 . . . . . . . . . . . . . 2 1 . . . . . . . . . Garrison Relay 18 | . . . . . . 5 . 5 . . 4 . . . . . . . . . . . . . . . . . . . . . 4 . . . Phase Generator 3 | . . . . . . 1 . 1 . . 1 . . . . . . . . . . . . . . . . . . . . . . . . . Network Hub 2 | . . . . . . . . . . . . . . . . . . . . . . . . . . 2 . . . . . . . . . . Energy Cycler 2 | . . . . . . . . . . . . . . . . . . . . . . . 2 . . . . . . . . . . . . . Machines Repaired . | . . . . . . . . . . . . . . . . . . . . . . . . . . . . . . . . . . . . . Machines Dismantled 17 | . . . . . . 8 . 9 . . . . . . . . . . . . . . . . . . . . . . . . . . . . Machines Sabotaged . | . . . . . . . . . . . . . . . . . . . . . . . . . . . . . . . . . . . . . Overloaded Fab Kills . | . . . . . . . . . . . . . . . . . . . . . . . . . . . . . . . . . . . . . Hacking | -11 -10 -10 -10 -9 -8 -8 -8 -8 -8 -7 -7 -7 -7 -7 -7 -6 -6 -6 -6 -6 -5 -5 -5 -5 -5 -5 -4 -4 -4 -4 -3 -3 -3 -3 -3 -3 --------- Run | Yrd Mat Min Exi Min Mat Gar Mat Gar Mat Fac Gar Fac Low Low Zio Pro Fac Low Low Dat Pro Fac Ext Cet Arc Hub Fac Upp Upp Zhi Pro Res Gar Res Qua Gar Machines Accessed 227 | . 10 1 1 . 17 4 16 2 8 20 3 17 . . . . 18 1 1 4 . 19 9 1 . 9 18 2 . 7 1 17 4 6 11 . Terminals 124 | . 7 . . . 11 4 10 2 6 9 3 7 . . . . 7 . 1 . . 8 9 1 . 7 11 . . . 1 6 4 3 7 . Fabricators 20 | . . . . . . . . . . 5 . 5 . . . . 5 . . . . . . . . . 2 . . . . 2 . 1 . . Repair Stations 19 | . 1 . . . 2 . 2 . 1 1 . 2 . . . . 1 . . . . 1 . . . . 3 . . . . 2 . 1 2 . Recycling Units 16 | . 2 . . . 1 . 1 . . 1 . . . . . . 3 . . . . 6 . . . . 1 . . . . 1 . . . . Scanalyzers 17 | . . . . . 2 . 2 . 1 2 . 1 . . . . 1 . . . . 2 . . . . . . . . . 4 . 1 1 . Garrison Access 15 | . . . . . 1 . 1 . . 2 . 2 . . . . 1 . . . . 2 . . . 2 1 . . . . 2 . . 1 . Total Hacks 1097 | . 32 1 1 . 105 14 88 7 25 111 6 62 . . . . 70 1 5 31 . 57 26 1 . 70 86 6 . 42 1 137 25 25 62 . Successful 722 | . 20 1 1 . 86 5 71 4 22 70 1 43 . . . . 49 1 5 31 . 28 13 . . 39 48 6 . 42 1 81 6 12 36 . Failed 368 | . 11 . . . 18 9 16 3 3 41 5 19 . . . . 20 . . . . 28 13 1 . 31 38 . . . . 55 19 13 25 . Catastrophic 51 | . . . . . 2 1 1 . . 6 1 2 . . . . 2 . . . . 6 2 . . 4 9 . . . . 2 7 3 3 . Database Lockouts 7 | . 1 . . . 1 . 1 . . . . . . . . . 1 . . . . 1 . . . . . . . . . 1 . . 1 . Manual 575 | . 23 . . . 52 4 48 3 16 67 . 30 . . 1 . 47 . . . . 41 22 1 . 59 57 . . . . 64 11 9 20 . Terminals 601 | . 24 . . . 57 14 51 7 21 56 6 23 . . . . 38 . 5 . . 24 26 1 . 55 58 . . . 1 61 25 15 33 . Fabricators 76 | . . . . . . . . . . 19 . 21 . . . . 14 . . . . . . . . . 9 . . . . 10 . 3 . . Repair Stations 91 | . 4 . . . 14 . 9 . 2 13 . 7 . . . . 2 . . . . 1 . . . . 10 . . . . 8 . 2 19 . Recycling Units 53 | . 4 . . . 5 . 3 . . 3 . . . . . . 8 . . . . 20 . . . . 5 . . . . 5 . . . . Scanalyzers 132 | . . . . . 26 . 22 . 2 11 . 7 . . . . 5 . . . . 7 . . . . . . . . . 38 . 5 9 . Garrison Access 62 | . . . . . 3 . 3 . . 9 . 4 . . . . 3 . . . . 5 . . . 15 4 . . . . 15 . . 1 . Terminal Hacks 238 | . 4 1 1 . 18 4 15 2 9 20 1 4 . . . . 13 1 5 31 . 3 5 . . 9 11 6 . 42 1 19 3 3 7 . Record 58 | . . . 1 . . . . . 1 . . . . . . . . . 5 11 . . . . . . . 5 . 34 1 . . . . . Part Schematic 23 | . . . . . . . . . . 2 . 1 . . . . . . . 11 . 1 . . . . 3 . . 4 . 1 . . . . Robot Schematic 9 | . . . . . . . . . . 2 . . . . . . . . . 6 . . . . . . . . . . . . . . 1 . Robot Analysis 19 | . 1 . . . 4 . 1 . 4 5 . 1 . . . . 3 . . . . . . . . . . . . . . . . . . . Prototype ID Bank 34 | . 1 . . . 4 . 4 . . 3 . 1 . . . . 1 . . 3 . 1 2 . . 1 4 . . 4 . 3 . 1 1 . Open Door 6 | . . 1 . . . 1 . . . . . . . . . . . 1 . . . . 1 . . . . 1 . . . . 1 . . . Level Access Points 1 | . . . . . . . . . . . . . . . . . . . . . . . . . . . . . . . . . . . 1 . Branch Access Points 1 | . . . . . . . . . . . . . . . . . 1 . . . . . . . . . . . . . . . . . . . Emergency Access Points 5 | . . . . . . 1 . 1 . . 1 . . . . . . . . . . . . . . . . . . . . 1 1 . . . Machine Index 1 | . . . . . . . . . . . . . . . . . . . . . . . . . . . . . . . . 1 . . . . Terminal Index 4 | . . . . . 1 . 1 . 1 . . . . . . . . . . . . . . . . . . . . . . 1 . . . . Alert Level 4 | . . . . . . . 2 . . 1 . . . . . . . . . . . . . . . . . . . . . 1 . . . . Unreport Threat 31 | . 1 . . . 4 . 5 . 3 4 . 1 . . . . 2 . . . . . . . . 3 2 . . . . 3 . 1 2 . Locate Traps 8 | . 1 . . . . . 1 . . . . . . . . . 1 . . . . 1 . . . 1 1 . . . . 2 . . . . Disarm Traps 5 | . . . . . . . . . . 1 . . . . . . 1 . . . . . 1 . . . . . . . . 1 . . 1 . Reprogram Traps 8 | . . . . . 4 . 1 . . 2 . . . . . . . . . . . . . . . 1 . . . . . . . . . . Dispatch Records 1 | . . . . . . . . . . . . . . . . . . . . . . . . . . . . . . . . 1 . . . . Surveillance Status 2 | . . . . . . . . . . . . . . . . . 1 . . . . . . . . . . . . . . 1 . . . . Patrol Status 1 | . . . . . . . . . . . . . . . . . 1 . . . . . . . . . . . . . . . . . . . Recall Investigation 2 | . . . . . . . . . . . . . . . . . . . . . . . . . . . . . . . . 1 . 1 . . Recall Extermination 1 | . . . . . . . . . . . . . . . . . . . . . . . . . . 1 . . . . . . . . . . Recall Reinforcements 5 | . . . . . . . . . . . . . . . . . . . . . . . 1 . . 2 1 . . . . 1 . . . . Hauler Manifests 1 | . . . . . . . . . . . . . . . . . . . . . . . . . . . . . . . . 1 . . . . Registered Components 1 | . . . . . . . . . . . . . . . . . 1 . . . . . . . . . . . . . . . . . . . Registered Prototypes 2 | . . . . . . . . . . . . . . . . . 1 . . . . . . . . . . . . . . . . . 1 . Zone Layout 1 | . . . . . 1 . . . . . . . . . . . . . . . . . . . . . . . . . . . . . . . Patrol Navigation 2 | . . . . . . 1 . . . . . . . . . . . . . . . . . . . . . . . . . . 1 . . . Security Stations 2 | . . . . . . 1 . 1 . . . . . . . . . . . . . . . . . . . . . . . . . . . . Fabricator Hacks 23 | . . . . . . . . . . 5 . 7 . . . . 4 . . . . . . . . . 2 . . . . 3 . 2 . . Network Status 3 | . . . . . . . . . . 1 . 1 . . . . 1 . . . . . . . . . . . . . . . . . . . Load Schematic 7 | . . . . . . . . . . 1 . 2 . . . . 1 . . . . . . . . . 1 . . . . 1 . 1 . . Build 13 | . . . . . . . . . . 3 . 4 . . . . 2 . . . . . . . . . 1 . . . . 2 . 1 . . Repair Station Hacks 64 | . 4 . . . 12 . 6 . 2 11 . 3 . . . . 2 . . . . 1 . . . . 6 . . . . 4 . 2 11 . Scan Component 33 | . 2 . . . 6 . 3 . 1 6 . 2 . . . . 1 . . . . . . . . . 3 . . . . 2 . 1 6 . Repair 30 | . 2 . . . 6 . 3 . 1 5 . 1 . . . . 1 . . . . . . . . . 3 . . . . 2 . 1 5 . Refit 1 | . . . . . . . . . . . . . . . . . . . . . . 1 . . . . . . . . . . . . . . Recycling Unit Hacks 5 | . . . . . 1 . . . . . . . . . . . 1 . . . . 1 . . . . 1 . . . . 1 . . . . Retrieve Components 5 | . . . . . 1 . . . . . . . . . . . 1 . . . . 1 . . . . 1 . . . . 1 . . . . Scanalyzer 94 | . . . . . 24 . 20 . 2 6 . 7 . . . . 5 . . . . 3 . . . . . . . . . 17 . 2 8 . Insert Component 38 | . . . . . 10 . 9 . 1 1 . 3 . . . . 2 . . . . 1 . . . . . . . . . 7 . . 4 . Analyze 40 | . . . . . 14 . 11 . . . . 4 . . . . 2 . . . . . . . . . . . . . . 6 . . 3 . Retrieve Study 16 | . . . . . . . . . 1 5 . . . . . . 1 . . . . 2 . . . . . . . . . 4 . 2 1 . Garrison Access Hacks 13 | . . . . . 1 . 1 . . 2 . 2 . . . . . . . . . 1 . . . 2 1 . . . . 2 . . 1 . Unlock Access 12 | . . . . . 1 . 1 . . 2 . 1 . . . . . . . . . 1 . . . 2 1 . . . . 2 . . 1 . Seal Access 1 | . . . . . . . . . . . . 1 . . . . . . . . . . . . . . . . . . . . . . . . Unauthorized Hacks 284 | . 12 . . . 30 1 29 2 9 26 . 20 . . . . 24 . . . . 19 8 . . 27 27 . . . . 35 3 3 9 . Terminals 191 | . 9 . . . 23 1 19 2 9 13 . 8 . . . . 12 . . . . 13 8 . . 21 17 . . . . 22 3 3 8 . Track 16 | . . . . . 3 . 1 . . . . . . . . . 1 . . . . 1 . . . 1 2 . . . . 5 1 . 1 . Assimilate 9 | . . . . . 1 . 2 . . 1 . . . . . . . . . . . . . . . 3 . . . . . 1 . . 1 . Botnet 74 | . 3 . . . 8 1 5 2 3 6 . 4 . . . . 5 . . . . 5 3 . . 7 8 . . . . 5 2 2 5 . Detonate 3 | . . . . . . . . . . . . . . . . . . . . . . . . . . 3 . . . . . . . . . . Disrupt 5 | . . . . . . . . . . . . . . . . . . . . . . . . . . . 1 . . . . 4 . . . . Operators 15 | . 1 . . . 1 . 1 . 1 1 . 1 . . . . 1 . . . . 2 . . . 1 1 . . . . 2 . 1 1 . Skim 68 | . 5 . . . 10 . 10 . 5 5 . 3 . . . . 5 . . . . 5 5 . . 5 5 . . . . 5 . . . . Sabotage 1 | . . . . . . . . . . . . . . . . . . . . . . . . . . 1 . . . . . . . . . . Fabricators 26 | . . . . . . . . . . 5 . 9 . . . . 6 . . . . . . . . . 3 . . . . 3 . . . . Report 3 | . . . . . . . . . . 1 . 1 . . . . . . . . . . . . . . 1 . . . . . . . . . Prioritize 6 | . . . . . . . . . . 1 . 2 . . . . . . . . . . . . . . 1 . . . . 2 . . . . Liberate 13 | . . . . . . . . . . 2 . 5 . . . . 5 . . . . . . . . . . . . . . 1 . . . . Haulers 4 | . . . . . . . . . . 1 . 1 . . . . 1 . . . . . . . . . 1 . . . . . . . . . Repair Stations 12 | . . . . . 2 . 3 . . 2 . 2 . . . . . . . . . . . . . . 2 . . . . . . . 1 . Mechanics 6 | . . . . . 1 . 1 . . 1 . 1 . . . . . . . . . . . . . . 1 . . . . . . . 1 . Patch 6 | . . . . . 1 . 2 . . 1 . 1 . . . . . . . . . . . . . . 1 . . . . . . . . . Recycling Units 27 | . 3 . . . 4 . 3 . . 1 . . . . . . 5 . . . . 5 . . . . 3 . . . . 3 . . . . Reject 5 | . . . . . 1 . . . . . . . . . . . 1 . . . . 1 . . . . 1 . . . . 1 . . . . Recyclers 10 | . 1 . . . 1 . 1 . . 1 . . . . . . 2 . . . . 2 . . . . 1 . . . . 1 . . . . Mask 9 | . 1 . . . 1 . 1 . . . . . . . . . 2 . . . . 2 . . . . 1 . . . . 1 . . . . Tunnel 3 | . 1 . . . 1 . 1 . . . . . . . . . . . . . . . . . . . . . . . . . . . . . Scanalyzers 3 | . . . . . 1 . 2 . . . . . . . . . . . . . . . . . . . . . . . . . . . . . Extract 3 | . . . . . 1 . 2 . . . . . . . . . . . . . . . . . . . . . . . . . . . . . Garrison Access 25 | . . . . . . . 2 . . 5 . 1 . . . . 1 . . . . 1 . . . 6 2 . . . . 7 . . . . Broadcast 2 | . . . . . . . . . . . . . . . . . . . . . . . . . . 1 . . . . . 1 . . . . Decoy 2 | . . . . . . . . . . 1 . . . . . . . . . . . . . . . 1 . . . . . . . . . . Redirect 3 | . . . . . . . . . . 1 . . . . . . . . . . . . . . . 1 . . . . . 1 . . . . Reprogram 8 | . . . . . . . 1 . . 1 . . . . . . 1 . . . . 1 . . . 1 1 . . . . 2 . . . . Intercept 7 | . . . . . . . 1 . . 1 . 1 . . . . . . . . . . . . . 1 1 . . . . 2 . . . . Watchers 3 | . . . . . . . . . . 1 . . . . . . . . . . . . . . . 1 . . . . . 1 . . . . Data Cores Recovered 5 | . . . . . 1 . . . 1 . . 1 . . . . 1 . . . . . . . . . . . . . . . . . 1 . Used 3 | . . . . . . . . . 1 . . 1 . . . . . . . . . . . . . . . . . . . . . . 1 . Hacking Detections 178 | . 10 . . . 16 4 13 2 8 18 3 15 . . . . 14 . 1 . . 17 8 2 . 8 14 . . . . 12 3 4 6 . Full Trace Events 12 | . . . . . 1 . . . . 1 1 4 . . . . 1 . 1 . . . . . . 1 1 . . . . 1 . . . . Feedback Events 1 | . . . . . . . . . . . . 1 . . . . . . . . . . . . . . . . . . . . . . . . Corruption 1 | . . . . . . . . . . . . 1 . . . . . . . . . . . . . . . . . . . . . . . . Feedback Blocked . | . . . . . . . . . . . . . . . . . . . . . . . . . . . . . . . . . . . . . Robot Schematics Acquired 11 | . . . . . . . . . . 2 . . . . 2 . . . . 6 . . . . . . . . . . . . . . 1 . Robots Built 10 | . . . . . . . . . . 5 . 4 . . . . . . . . . . . . . . . . . . . . . 1 . . Authchips 2 | . . . . . . . . . . 1 . . . . . . . . . . . . . . . . . . . . . . . 1 . . Time 477 | . . . . . . . . . . 116 . 134 . . . . 134 . . . . . . . . . . . . . . . . 93 . . Total Robot Build Rating 38 | . . . . . . . . . . 15 . 16 . . . . . . . . . . . . . . . . . . . . . 7 . . Part Schematics Acquired 87 | . . . . . 18 . 11 . . 2 . 4 . . 16 . 2 . . 11 . 1 . . . . 3 . . 4 . 7 . . 8 . Parts Built 13 | . . . . . . . . . . 2 . 4 . . . . 2 . . . . . . . . . 2 . . . . 3 . . . . Authchips . | . . . . . . . . . . . . . . . . . . . . . . . . . . . . . . . . . . . . . Time 519 | . . . . . . . . . . 84 . 223 . . . . 47 . . . . . . . . . 26 . . . . 139 . . . . Total Part Build Rating 81 | . . . . . . . . . . 8 . 26 . . . . 10 . . . . . . . . . 12 . . . . 25 . . . . Part Studies Acquired 16 | . . . . . . . . . 1 5 . . . . . . 1 . . . . 2 . . . . . . . . . 4 . 2 1 . Parts Repaired 29 | . 2 . . . 6 . 3 . 1 5 . 1 . . . . . . . . . . . . . . 3 . . . . 2 . 1 5 . Time 1137 | . 52 . . . 162 . 108 . 38 220 . 88 . . . . 50 . . . . . . . . . 146 . . . . 67 . 22 184 . Parts Recycled . | . . . . . . . . . . . . . . . . . . . . . . . . . . . . . . . . . . . . . Recycled Matter . | . . . . . . . . . . . . . . . . . . . . . . . . . . . . . . . . . . . . . Retrieved Matter . | . . . . . . . . . . . . . . . . . . . . . . . . . . . . . . . . . . . . . Retrieved Components 14 | . . . . . 10 . . . . . . . . . . . 2 . . . . . . . . . 1 . . . . 1 . . . . Parts Scanalyzed 35 | . . . . . 10 . 9 . . 1 . 3 . . . . 2 . . . . 1 . . . . . . . . . 6 . . 3 . Part Schematics Acquired 33 | . . . . . 10 . 9 . . . . 3 . . . . 2 . . . . . . . . . . . . . . 6 . . 3 . Parts Damaged 6 | . . . . . . . 1 . . . . 1 . . . . . . . . . 1 . . . . . . . . . 2 . . 1 . Bothacking | -11 -10 -10 -10 -9 -8 -8 -8 -8 -8 -7 -7 -7 -7 -7 -7 -6 -6 -6 -6 -6 -5 -5 -5 -5 -5 -5 -4 -4 -4 -4 -3 -3 -3 -3 -3 -3 ------------ Run | Yrd Mat Min Exi Min Mat Gar Mat Gar Mat Fac Gar Fac Low Low Zio Pro Fac Low Low Dat Pro Fac Ext Cet Arc Hub Fac Upp Upp Zhi Pro Res Gar Res Qua Gar Used RIF Installer 1 | . . . . . . . . . . . . . . . . . . . . . . . . . . . . . . . . . 1 . . . Robots Hacked 7 | . . . . . . . . . . . . . . . . . . . . . . . . . . . . . . . . . 4 3 . . Non-combat 3 | . . . . . . . . . . . . . . . . . . . . . . . . . . . . . . . . . . 3 . . Combat 4 | . . . . . . . . . . . . . . . . . . . . . . . . . . . . . . . . . 4 . . . Robot Hacks Applied 9 | . . . . . . . . . . . . . . . . . . . . . . . . . . . . . . . . . 4 5 . . drop_inventory 1 | . . . . . . . . . . . . . . . . . . . . . . . . . . . . . . . . . . 1 . . purge_threat 1 | . . . . . . . . . . . . . . . . . . . . . . . . . . . . . . . . . . 1 . . block_reporting 1 | . . . . . . . . . . . . . . . . . . . . . . . . . . . . . . . . . . 1 . . formatsys_low 2 | . . . . . . . . . . . . . . . . . . . . . . . . . . . . . . . . . . 2 . . formatsys_high 4 | . . . . . . . . . . . . . . . . . . . . . . . . . . . . . . . . . 4 . . . Relay Couplers Released 83 | . . . . . . 23 . 21 . . 20 . . . . . . . . . . . . . . 3 2 . . . . . 14 . . . Machine Destruction 75 | . . . . . . 19 . 21 . . 16 . . . . . . . . . . . . . . 3 2 . . . . . 14 . . . Programmers 8 | . . . . . . 4 . . . . 4 . . . . . . . . . . . . . . . . . . . . . . . . . Attached 4 | . . . . . . . . . . . . . . . . . . . . . . . . . . . . . . . . . 2 2 . . Fabnet Peak Effective % . | . . . . . . . . . . . . . . . . . . . . . . . . . . . . . . . . . . . . . Robots Rewired 20 | . . . . . . . . . . . 1 . 2 . . . . . . . . . 13 . . . . . . . . . 4 . . . Allies Hacked 3 | . . . . . . . . . . . . 1 . . . 1 . . . . . . . . . . . . . . . . . 1 . . Hacks Repelled . | . . . . . . . . . . . . . . . . . . . . . . . . . . . . . . . . . . . . . Allies | -11 -10 -10 -10 -9 -8 -8 -8 -8 -8 -7 -7 -7 -7 -7 -7 -6 -6 -6 -6 -6 -5 -5 -5 -5 -5 -5 -4 -4 -4 -4 -3 -3 -3 -3 -3 -3 -------- Run | Yrd Mat Min Exi Min Mat Gar Mat Gar Mat Fac Gar Fac Low Low Zio Pro Fac Low Low Dat Pro Fac Ext Cet Arc Hub Fac Upp Upp Zhi Pro Res Gar Res Qua Gar Total Allies 99 | . . 1 . 3 . 2 1 . . 9 3 24 2 . 5 . 4 . . . . . 15 5 . 5 2 . . . . 6 8 3 1 . Largest Group 9 | . . 1 . 3 3 2 1 . . 4 2 6 2 2 5 5 3 . . . . . 9 6 6 5 2 . . . . 6 4 7 6 . Highest-Rated Group 639 | . . 31 . 40 40 62 10 . . 90 142 202 46 46 124 124 87 . . . . . 368 639 632 473 112 . . . . 300 332 413 280 . Highest-Rated Ally 159 | . . 31 . 16 16 31 10 . . 32 80 80 30 30 31 31 32 . . . . . 159 159 159 96 56 . . . . 56 119 119 117 . Initial Warlord ECA Mod 33 | . . . . . . . 12 12 25 24 24 33 33 33 33 32 32 28 28 28 27 27 24 24 24 24 23 22 22 22 21 21 21 . . . Warlord Squad Rendezvous 8 | . . . . . . . . . . . . . . . . . 4 . . . . 3 . . . . 1 . . . . . . . . . Dakka 2 | . . . . . . . . . . . . . . . . . 1 . . . . 1 . . . . . . . . . . . . . . Geek 1 | . . . . . . . . . . . . . . . . . . . . . . 1 . . . . . . . . . . . . . . Ranger 4 | . . . . . . . . . . . . . . . . . 2 . . . . 1 . . . . 1 . . . . . . . . . Chimera 1 | . . . . . . . . . . . . . . . . . 1 . . . . . . . . . . . . . . . . . . . Total Orders 35 | . . . . . . . . . . 5 . 2 . . . . . . . . . . . . 2 5 . . . . . 1 4 10 6 . STAY 18 | . . . . . . . . . . 4 . 1 . . . . . . . . . . . . 1 2 . . . . . . 3 5 2 . FOLLOW 11 | . . . . . . . . . . 1 . 1 . . . . . . . . . . . . 1 3 . . . . . . 1 2 2 . AID 5 | . . . . . . . . . . . . . . . . . . . . . . . . . . . . . . . . . . 3 2 . RETURN 1 | . . . . . . . . . . . . . . . . . . . . . . . . . . . . . . . . 1 . . . . Ally Attacks 651 | . . 11 . 6 57 14 . . . 53 1 114 12 4 . 28 19 . . . . . 108 26 27 54 8 . . . . 18 27 52 12 . Total Damage 17276 | . . 147 . 38 607 209 . . . 765 . 2954 184 45 . 779 439 . . . . . 3230 1211 1171 1804 281 . . . . 323 1074 1623 392 . Kills 102 | . . 5 . 1 8 2 . . . 4 . 23 2 . . 4 . . . . . . 22 3 4 8 . . . . . 1 8 5 2 . Allies Corrupted 6 | . . . . . . . . . . . . . . . . . . . . . . . . . . 4 . . . . . . 1 . 1 . Allies Melted 1 | . . . . . . . . . . . . 1 . . . . . . . . . . . . . . . . . . . . . . . . Intel | -11 -10 -10 -10 -9 -8 -8 -8 -8 -8 -7 -7 -7 -7 -7 -7 -6 -6 -6 -6 -6 -5 -5 -5 -5 -5 -5 -4 -4 -4 -4 -3 -3 -3 -3 -3 -3 ------- Run | Yrd Mat Min Exi Min Mat Gar Mat Gar Mat Fac Gar Fac Low Low Zio Pro Fac Low Low Dat Pro Fac Ext Cet Arc Hub Fac Upp Upp Zhi Pro Res Gar Res Qua Gar Active Infowar (turns) 13988 | 52 487 . . . 76 . . . . . 2 375 1516 1660 1528 1134 735 881 1329 . 1 825 461 . . . 190 818 796 120 670 15 . . 271 46 Optics 844 | . . . . . . . . . . . . . . . . . 414 . . . . . . . . . 190 . . . . . . . 194 46 Sensors 8937 | . . . . . . . . . . . . 372 1516 1660 1528 1134 308 . . . . . . . . . . 818 796 120 670 15 . . . . A.S.S. 2223 | . . . . . . . . . . . . . . . . . 13 881 1329 . . . . . . . . . . . . . . . . . Terrain 1958 | 52 487 . . . 76 . . . . . . . . . . . 266 . . . . 616 461 . . . . . . . . . . . . . Traps 78 | . . . . . . . . . . . . . . . 1 . . . . . . . . . . . . . . . . . . . 77 . Seismic 2 | . . . . . . . . . . . . . . . . . 2 . . . . . . . . . . . . . . . . . . . T.N.C. 1 | . . . . . . . . . . . 1 . . . . . . . . . . . . . . . . . . . . . . . . . Machine Analysis 1 | . . . . . . . . . . . 1 . . . . . . . . . . . . . . . . . . . . . . . . . Spoofing 1 | . . . . . . . . . . . . 1 . . . . . . . . . . . . . . . . . . . . . . . . Jamming 657 | . . . . . . . . . . . . 2 . . . . . . . . 1 497 157 . . . . . . . . . . . . . ECM 1 | . . . . . . . . . . . . . . . 1 . . . . . . . . . . . . . . . . . . . . . Robot Analysis Total 150 | . 1 . . . 4 . 1 . 4 5 . 1 . . . . 3 . . 131 . . . . . . . . . . . . . . . . Derelict Logs Recovered 18 | . . 2 . 1 . . . . . . . . 1 2 3 1 . 2 1 . 1 . . . . . . 2 2 . . . . . . . Drone Launches 2 | . . . . . . . . . . . . . . . . . . . . . . . . . . . . . . . . 2 . . . . Drone Recoveries . | . . . . . . . . . . . . . . . . . . . . . . . . . . . . . . . . . . . . . Exploration | -11 -10 -10 -10 -9 -8 -8 -8 -8 -8 -7 -7 -7 -7 -7 -7 -6 -6 -6 -6 -6 -5 -5 -5 -5 -5 -5 -4 -4 -4 -4 -3 -3 -3 -3 -3 -3 ------------- Run | Yrd Mat Min Exi Min Mat Gar Mat Gar Mat Fac Gar Fac Low Low Zio Pro Fac Low Low Dat Pro Fac Ext Cet Arc Hub Fac Upp Upp Zhi Pro Res Gar Res Qua Gar Turns Passed 49582 | 145 1652 1082 562 1326 2696 2376 4452 2193 1710 2467 2921 3528 1534 1696 1528 1134 2452 881 1881 89 339 891 1200 362 271 890 1353 820 796 122 670 1071 1479 503 464 46 Spaces Moved 35520 | 55 806 630 259 522 1345 1078 1977 923 1173 2152 1482 1930 1220 1113 1040 513 2025 851 1627 94 505 838 997 177 185 1115 1702 943 767 174 1029 1541 1355 586 717 74 Core 880 | 6 . . . . . . . . 27 . . . . . . . . . . 5 337 . . . . 59 436 . . . . . . . . 10 Treads 11014 | 49 806 630 259 522 1345 1078 1977 923 562 . 1104 1668 . . . 71 . . . . . . 20 . . . . . . . . . . . . . Legs 1071 | . . . . . . . . . . . 158 . . . . 98 528 . . . . . 80 177 30 . . . . . . . . . . . Wheels 1199 | . . . . . . . . . . 1174 25 . . . . . . . . . . . . . . . . . . . . . . . . . Hover 21191 | . . . . . . . . . 442 955 195 262 1220 1113 1040 344 1497 851 1627 89 168 838 897 . 155 1056 1266 943 767 174 1029 1541 1355 586 717 64 Flight 165 | . . . . . . . . . 142 23 . . . . . . . . . . . . . . . . . . . . . . . . . . Fastest Speed 28 | 50 160 160 160 240 160 160 155 155 34 48 48 59 65 59 142 132 52 52 52 50 50 28 28 120 53 50 39 42 42 44 44 33 40 36 29 38 Average Speed 112 | 148 160 160 215 240 161 187 197 196 104 81 158 152 113 142 142 193 90 92 103 64 60 85 69 120 68 56 51 82 98 50 49 42 55 53 43 57 Slowest Speed 500 | 160 160 160 240 240 240 240 240 240 232 192 240 240 132 217 142 500 190 102 113 150 200 136 165 120 190 126 111 110 114 114 117 186 119 164 296 80 Overloaded Moves 224 | . . . . . . . . . . . . . . . . . . . . . . . . . . . . . . . . . 87 15 93 29 Propulsion Burnouts . | . . . . . . . . . . . . . . . . . . . . . . . . . . . . . . . . . . . . . Robots Hopped . | . . . . . . . . . . . . . . . . . . . . . . . . . . . . . . . . . . . . . Potential Cave-ins 5 | . . . . . . . . . 2 . . . . . . . . . . . . . . . . . . . . . . . 3 . . . Cave-ins Triggered . | . . . . . . . . . . . . . . . . . . . . . . . . . . . . . . . . . . . . . Teleports 2 | . . . . . . . . . . . . . . . . . . . . . . . . . . . . . . . . 1 . . 1 . Exploration Rate (%) 68 | 5 96 94 58 99 92 98 90 93 68 34 80 42 98 96 87 61 36 92 97 78 69 22 90 67 83 56 32 88 80 62 85 36 92 8 54 32 Regions Visited 36 Branch Regions 20 Pre-discovered Areas 60 | . 1 1 1 1 5 . 4 . 4 3 . . 1 . 2 1 1 1 . 23 . 1 . . . . 4 1 2 3 . . . . . . Known Exits Taken 25 | . . . . . 1 . 1 . 1 1 . 1 1 1 1 1 1 1 . . 1 1 1 1 1 1 1 1 1 1 1 1 . 1 1 . Unknown Exits Taken 7 | 1 1 1 1 1 . . . . . . . . . . . . . . 1 1 . . . . . . . . . . . . . . . . Scrap Searched 36 | . . 2 . 4 . . . . . . . . 2 2 2 3 . 2 4 . 5 . . . . . . 4 2 . 4 . . . . . Spaces Dug 206 | . 7 . . . . 2 . . 28 1 . 10 33 . . 2 11 . 1 . 25 1 36 . . 4 7 8 . . 8 6 9 5 2 . Terrain Destroyed 2197 | . 38 10 . 17 36 14 53 38 235 260 84 99 84 20 . 15 158 1 118 . 25 1 71 8 15 428 121 11 3 1 68 70 57 22 16 . Melee 4 | . . . . . . . . . . . . . . . . . 3 . . . . 1 . . . . . . . . . . . . . . Projectile 393 | . . . . . . . 4 . . 35 2 7 . 1 . 15 24 1 9 . . . 22 8 15 31 43 11 3 1 19 47 57 22 16 . AOE 1798 | . 38 10 . 17 36 14 49 38 235 225 82 92 84 19 . . 129 . 109 . 25 . 49 . . 397 78 . . . 49 23 . . . . Terrain Rammed . | . . . . . . . . . . . . . . . . . . . . . . . . . . . . . . . . . . . . . Walls Destroyed . | . . . . . . . . . . . . . . . . . . . . . . . . . . . . . . . . . . . . . Machines Disabled . | . . . . . . . . . . . . . . . . . . . . . . . . . . . . . . . . . . . . . Actions | -11 -10 -10 -10 -9 -8 -8 -8 -8 -8 -7 -7 -7 -7 -7 -7 -6 -6 -6 -6 -6 -5 -5 -5 -5 -5 -5 -4 -4 -4 -4 -3 -3 -3 -3 -3 -3 --------- Run | Yrd Mat Min Exi Min Mat Gar Mat Gar Mat Fac Gar Fac Low Low Zio Pro Fac Low Low Dat Pro Fac Ext Cet Arc Hub Fac Upp Upp Zhi Pro Res Gar Res Qua Gar Total 41813 | 81 1046 661 266 564 1676 1229 2343 1107 1429 2604 1811 2343 1319 1198 1088 613 2482 927 1736 126 534 977 1359 297 274 1266 1977 969 788 200 1156 1827 1882 742 839 77 Wait 2062 | . 127 1 . 1 172 5 223 8 45 154 5 86 7 53 24 57 191 63 24 15 5 60 84 94 27 18 28 1 12 . 90 101 153 70 57 1 Move 35484 | 54 805 629 258 521 1344 1077 1976 922 1172 2151 1481 1929 1219 1112 1039 512 2024 850 1626 93 504 837 997 176 184 1114 1701 942 766 173 1028 1540 1353 585 716 74 Hop . | . . . . . . . . . . . . . . . . . . . . . . . . . . . . . . . . . . . . . Pick Up 506 | 1 21 2 4 10 19 5 14 17 16 56 29 57 6 1 5 2 31 2 7 3 2 17 25 4 10 11 37 7 1 5 4 27 31 11 6 . Fast Attach 222 | 7 3 . . 1 5 1 3 4 15 16 22 16 1 4 2 4 16 . 7 1 8 7 16 . 4 11 18 . . 4 . 6 9 2 9 . Attach 264 | . . 1 . . 4 2 2 8 12 26 9 23 6 4 . 2 33 . 8 4 6 3 13 3 6 12 25 2 2 2 2 14 16 7 7 . Detach 153 | . 2 . . . 1 . 2 2 2 3 10 19 4 3 1 1 25 . 5 2 5 3 9 2 3 7 10 . . 4 1 13 5 4 5 . Swap 511 | . 14 5 1 5 18 30 18 30 37 31 22 51 7 3 10 10 37 3 16 . . 14 17 2 4 16 28 5 . 1 12 21 28 11 4 . Drop 422 | . 11 1 3 8 20 9 19 12 24 36 20 32 2 3 6 2 32 1 6 7 . 10 33 2 9 17 14 3 . 6 4 33 20 6 11 . Fire 1779 | 19 62 22 . 18 91 64 86 55 104 130 169 130 27 15 1 23 89 8 37 . 4 12 63 14 27 60 107 9 7 5 15 72 167 43 24 . Melee 36 | . . . . . . . . . . . . . . . . . 4 . . 1 . 14 17 . . . . . . . . . . . . . Ram 10 | . . . . . . . . . 1 1 . . . . . . . . . . . . . . . . 6 . . . . . 2 . . . Kick . | . . . . . . . . . . . . . . . . . . . . . . . . . . . . . . . . . . . . . Crush 4 | . 1 . . . 2 . . . 1 . . . . . . . . . . . . . . . . . . . . . . . . . . . Escape Stasis 102 | . . . . . . 4 . 8 . . 39 . . . . . . . . . . . . . . . . . . . . . 49 . . 2 Rewire 184 | . . . . . . . . . . . 5 . 40 . . . . . . . . . 85 . . . 2 . . . . . 49 3 . . Trap . | . . . . . . . . . . . . . . . . . . . . . . . . . . . . . . . . . . . . . Miscellaneous 74 | . . . . . . 32 . 41 . . . . . . . . . . . . . . . . . . 1 . . . . . . . . . Route ------- -11/Scrapyard -10/Materials (discovered 6 exits: *Mat x3 / *Min x2 / Sub) -10/Mines (discovered 3 exits: *Mat x2 / *Exi) -10/Exiles -9/Mines (discovered 2 exits: *Mat x2) -8/Materials (discovered 4 exits: *Fac x3 / Gar) -8/Garrison (discovered 3 exits: *Mat x3) -8/Materials (discovered 4 exits: *Fac x3 / Gar) -8/Garrison (discovered 4 exits: *Mat x4) -8/Materials (discovered 3 exits: *Fac x3) -7/Factory (discovered 9 exits: Fac x4 / Sto / Low x2 / Gar / Gar) -7/Garrison (discovered 2 exits: *Fac x2) -7/Factory (discovered 7 exits: *Fac x3 / Sto / *Low x2 / Gar) -7/Lower Caves (discovered 2 exits: *Low / *Zio) -7/Lower Caves (discovered 2 exits: *Fac / *Zio) -7/Zion -6/Proximity Caves -6/Factory (discovered 6 exits: Fac x4 / *Low x2) -6/Lower Caves -6/Lower Caves (discovered 2 exits: *Fac / *Dat) -6/Data Miner -5/Proximity Caves -5/Factory (discovered 9 exits: *Fac x4 / Upp x2 / *Ext x2 / Gar) -5/Extension (discovered 3 exits: *Fac x2 / *Cet) -5/Cetus (discovered 3 exits: *Fac x2 / *Arc) -5/Archives (discovered 3 exits: *Fac / *Hub x2) -5/Hub_04(d) (discovered 4 exits: *Fac x4) -4/Factory (discovered 7 exits: *Res x4 / *Upp x2 / Arm) -4/Upper Caves -4/Upper Caves -4/Zhirov -3/Proximity Caves -3/Research (discovered 5 exits: *Res / Qua x2 / Gar / Gar) -3/Garrison (discovered 3 exits: *Res x3) -3/Research -3/Quarantine (discovered 2 exits: Res / Gar) -3/Garrison (discovered 1 exit: *Res) History --------- Turn | Location | Event 11 | -11/Scrapyard | Discovered new exit (range 15) 146 | -11/Scrapyard | Entered Materials 302 | -10/Materials | Build established: Mutant 364 | -10/Materials | Discovered new exit (range 15) 599 | -10/Materials | Central database locked down 603 | -10/Materials | Discovered new exit (range 6) 781 | -10/Materials | Discovered new exit (range 10) 985 | -10/Materials | Identified exit to Materials 985 | -10/Materials | Identified exit to Subcaves 1008 | -10/Materials | Learned 4 Recycling zone layouts 1020 | -10/Materials | Loaded intel: 4 trap records 1022 | -10/Materials | Learned 2 Storage zone layouts 1025 | -10/Materials | Learned Materials trap positions 1038 | -10/Materials | Learned Storage terminal intel 1139 | -10/Materials | Repaired Lgt. Cannon 1166 | -10/Materials | Repaired Propulsion Shielding 1798 | -10/Materials | Entered Mines 1799 | -10/Mines | Assembled infested the area 1813 | -10/Mines | Met 8R-AWN 1909 | -10/Mines | Met a Derelict shopkeep closing up shop 1958 | -10/Mines | Escorted by a lone wolf Derelict 2005 | -10/Mines | Discovered new exit (range 5) 2360 | -10/Mines | YI-UF0 nonchalantly dropped a Grenade Launcher on the ground 2672 | -10/Mines | Found a hidden stash of uninstalled traps 2880 | -10/Mines | Entered Exiles 2880 | -10/Exiles | Accompanied by 1 ally 2923 | -10/Exiles | Welcomed by 8R-AWN 2949 | -10/Exiles | Met EX-HEX 3056 | -10/Exiles | Met EX-DEC 3096 | -10/Exiles | Learned location of Zion (-7) 3293 | -10/Exiles | Met EX-BIN 3415 | -10/Exiles | Discovered new exit (range 14) 3442 | -10/Exiles | Entered Mines 3540 | -9/Mines | Found a damaged Exp. Sensor Array with a note attached 3544 | -9/Mines | Found Prototype Device 3715 | -9/Mines | Discovered new exit (range 13) 3723 | -9/Mines | Learned location of Storage (-7) 3785 | -9/Mines | Found a Scrap Suit stashed away for nefarious purposes 3791 | -9/Mines | Found Scrap Suit 3940 | -9/Mines | Discovered new exit (range 14) 4499 | -9/Mines | Assisted by bots powering up and referring to "LRC-V3" 4768 | -9/Mines | Entered Materials 4768 | -8/Materials | Accompanied by 3 allies 4768 | -8/Materials | Evolved 4 slots: Propulsion x1, Utility x2, Weapon x1 4769 | -8/Materials | Loaded intel: 23 trap records 4848 | -8/Materials | Identified exit to Garrison 4934 | -8/Materials | Repaired Lgt. Treads 4961 | -8/Materials | Repaired Lgt. Treads 4988 | -8/Materials | Repaired Lgt. Treads 5016 | -8/Materials | Repaired Lgt. Cannon 5043 | -8/Materials | Repaired Lgt. Cannon 5278 | -8/Materials | Discovered new exit (range 10) 5325 | -8/Materials | Central database locked down 5369 | -8/Materials | Build established: Hacker-Gunner 5492 | -8/Materials | Identified Exp. Sensor Array 5988 | -8/Materials | Learned 12 Factory zone layouts 6064 | -8/Materials | Learned Factory garrison access intel 6087 | -8/Materials | Learned Storage trap positions 6102 | -8/Materials | Learned location of 1 exit from Recycling 6116 | -8/Materials | Learned 4 Lower Caves zone layouts 6133 | -8/Materials | Identified exit to Factory 6161 | -8/Materials | Learned 2 Storage zone layouts 6200 | -8/Materials | Learned location of 2 exits from Factory 6343 | -8/Materials | Repaired Imp. Light Cannon 6536 | -8/Materials | Discovered exit to Factory (range 14) 6872 | -8/Materials | Learned Factory scanalyzer intel 6984 | -8/Materials | Learned location of Recycling (-7) 7024 | -8/Materials | Learned Storage trap positions 7054 | -8/Materials | Learned Storage emergency access door positions 7072 | -8/Materials | Learned Storage garrison access intel 7101 | -8/Materials | Learned Storage stockpile data 7128 | -8/Materials | Learned 4 Recycling zone layouts 7164 | -8/Materials | Learned Factory emergency access door positions 7212 | -8/Materials | Learned location of 1 exit from Storage 7425 | -8/Materials | Garrison activated, responded to threat 7464 | -8/Materials | Entered Garrison 7470 | -8/Garrison | Triggered checkpoint 7554 | -8/Garrison | Rescued a captive Derelict 7555 | -8/Garrison | Rescued a captive Derelict 7608 | -8/Garrison | Garrison Relay disabled 7702 | -8/Garrison | Triggered checkpoint 7722 | -8/Garrison | Triggered checkpoint 7823 | -8/Garrison | Discovered new exit (range 9) 7831 | -8/Garrison | Learned Materials security intel 7890 | -8/Garrison | Triggered checkpoint 7915 | -8/Garrison | Garrison Relay disabled 8060 | -8/Garrison | Phase Generator disabled 8087 | -8/Garrison | P-60 Hacker assimilated allied AU-J6Z(g) 8217 | -8/Garrison | Garrison Relay disabled 8352 | -8/Garrison | Triggered checkpoint 8436 | -8/Garrison | Garrison Relay disabled 8485 | -8/Garrison | Discovered new exit (range 12) 8552 | -8/Garrison | Triggered checkpoint 9152 | -8/Garrison | Triggered checkpoint 9182 | -8/Garrison | Build established: Scavenger-Gunner 9214 | -8/Garrison | Garrison Relay disabled 9344 | -8/Garrison | Discovered new exit (range 15) 9840 | -8/Garrison | Entered Materials 9959 | -8/Materials | Central database locked down 10004 | -8/Materials | Repaired Imp. Light Cannon 10192 | -8/Materials | Build established: Hacker-Gunner 10576 | -8/Materials | Met 7R-MNS 10599 | -8/Materials | Discovered exit to Factory (range 8) 10953 | -8/Materials | Learned Recycling recycling unit intel 11004 | -8/Materials | Identified exit to Garrison 11026 | -8/Materials | Learned 4 Recycling zone layouts 11089 | -8/Materials | Learned Factory recycling unit intel 11142 | -8/Materials | Learned Factory trap positions 11187 | -8/Materials | Learned Factory terminal intel 11281 | -8/Materials | Learned location of 1 exit from Lower Caves 11379 | -8/Materials | Learned location of Lower Caves (-6) 12476 | -8/Materials | Repaired Flak Cannon 12515 | -8/Materials | Repaired Flak Cannon 12843 | -8/Materials | Learned Factory security intel 13037 | -8/Materials | Learned location of 1 exit from Extension 13046 | -8/Materials | Learned Storage stockpile data 13063 | -8/Materials | Learned location of 1 exit from Recycling 13126 | -8/Materials | Learned location of 3 exits from Factory 14292 | -8/Materials | Entered Garrison 14384 | -8/Garrison | Triggered checkpoint 14403 | -8/Garrison | Learned Materials security intel 14426 | -8/Garrison | Garrison Relay disabled 14446 | -8/Garrison | Triggered checkpoint 14700 | -8/Garrison | Triggered checkpoint 14700 | -8/Garrison | Triggered checkpoint 14726 | -8/Garrison | Triggered checkpoint 14755 | -8/Garrison | Lost 6 parts (3n3w) 14762 | -8/Garrison | Destroyed 9 combat bots 14845 | -8/Garrison | Discovered new exit (range 12) 14928 | -8/Garrison | Triggered checkpoint 14957 | -8/Garrison | Garrison Relay disabled 15171 | -8/Garrison | Phase Generator disabled 15403 | -8/Garrison | Build established: Hacker-Tank 15500 | -8/Garrison | Garrison Relay disabled 15532 | -8/Garrison | Triggered checkpoint 15555 | -8/Garrison | Garrison Relay disabled 15613 | -8/Garrison | Discovered new exit (range 13) 15949 | -8/Garrison | Discovered new exit (range 14) 16070 | -8/Garrison | Triggered checkpoint 16138 | -8/Garrison | Garrison Relay disabled 16438 | -8/Garrison | Triggered checkpoint 16444 | -8/Garrison | Discovered new exit (range 12) 16485 | -8/Garrison | Entered Materials 16490 | -8/Materials | Build established: Scavenger-Tank 16552 | -8/Materials | Core integrity fell below 50% 16885 | -8/Materials | First assault squad dispatched 17044 | -8/Materials | Lost 3 parts (1n2w) 17050 | -8/Materials | Destroyed 10 combat bots 17140 | -8/Materials | Build established: Hacker-Gunner 17217 | -8/Materials | Repaired Flak Cannon+ 17516 | -8/Materials | Discovered exit to Factory (range 14) 17583 | -8/Materials | Learned 2 Lower Caves zone layouts 17714 | -8/Materials | Learned location of 1 exit from Recycling 17742 | -8/Materials | Core integrity fell below 20% 17762 | -8/Materials | Lost 5 parts (1p2n2w) 17766 | -8/Materials | Learned 4 Lower Caves zone layouts 17806 | -8/Materials | Learned location of Lower Caves (-7) 17836 | -8/Materials | Learned Storage stockpile data 17855 | -8/Materials | Learned location of Lower Caves (-6) 17923 | -8/Materials | Learned Factory repair station intel 18195 | -8/Materials | Entered Factory 18195 | -7/Factory | Evolved 2 slots: Propulsion x1, Utility x1 18196 | -7/Factory | Identified exit to Factory 18196 | -7/Factory | Identified exit to Storage 18196 | -7/Factory | Identified exit to Lower Caves 18199 | -7/Factory | Loaded intel: 113 trap records 18202 | -7/Factory | Loaded intel: 26 terminal locations 18203 | -7/Factory | Loaded intel: 6 repair station locations 18204 | -7/Factory | Loaded intel: 6 recycling unit locations 18205 | -7/Factory | Loaded intel: 4 scanalyzer locations 18206 | -7/Factory | Loaded intel: 4 garrison access locations 18298 | -7/Factory | Fabricated H-55 Commando (x2) 18457 | -7/Factory | Lost 4 parts (3n1u) 18595 | -7/Factory | First assault squad dispatched 18813 | -7/Factory | Garrison activated, responded to threat 19071 | -7/Factory | Lost 5 parts (3n2w) 19200 | -7/Factory | Identified exit to Garrison 19425 | -7/Factory | System corruption reached 10% 19453 | -7/Factory | Fabricated Imp. Cooling System (x2) 19454 | -7/Factory | Found Prototype Launcher 19455 | -7/Factory | Lost 3 parts (2n1w) 19768 | -7/Factory | Identified Rocket Array 19895 | -7/Factory | Fabricated G-47 Trooper (x3) 20238 | -7/Factory | Identified exit to Garrison 20250 | -7/Factory | Learned 2 Extension zone layouts 20268 | -7/Factory | Repaired Gauss Cannon+? 20320 | -7/Factory | Repaired Gauss Rifle 20361 | -7/Factory | Learned location of Proximity Caves (-3) 20365 | -7/Factory | Repaired Corrupted Imp. Hover Unit+ 20410 | -7/Factory | Repaired Gravmag System+ 20450 | -7/Factory | Learned location of 1 exit from Cetus 20455 | -7/Factory | Repaired Gravmag System+? 20485 | -7/Factory | Unchained authorized (DW-4LL) 20520 | -7/Factory | Learned location of 1 exit from Hub_04(d) 20586 | -7/Factory | Destroyed 7 combat bots 20657 | -7/Factory | DW-4LL burst out of a wall 20662 | -7/Factory | Entered Garrison 20676 | -7/Garrison | Triggered checkpoint 20690 | -7/Garrison | Lost 3 parts (3n) 20734 | -7/Garrison | Garrison Relay disabled 20739 | -7/Garrison | Lost 5 parts (1p1n2u1w) 20897 | -7/Garrison | Triggered checkpoint 20903 | -7/Garrison | Triggered checkpoint 20957 | -7/Garrison | Destroyed 8 combat bots 20963 | -7/Garrison | Lost 5 parts (2n3w) 21394 | -7/Garrison | Build established: Scavenger-Gunner 21474 | -7/Garrison | Triggered checkpoint 21505 | -7/Garrison | Garrison Relay disabled 21683 | -7/Garrison | Discovered new exit (range 12) 22243 | -7/Garrison | Phase Generator disabled 22630 | -7/Garrison | Triggered checkpoint 22997 | -7/Garrison | Garrison Relay disabled 23015 | -7/Garrison | Garrison Relay disabled 23121 | -7/Garrison | Discovered new exit (range 12) 23207 | -7/Garrison | Build established: Scavenger-Mutant 23387 | -7/Garrison | Found embedded Infiltrators 23583 | -7/Garrison | Entered Factory 23583 | -7/Factory | Accompanied by 2 allies 23682 | -7/Factory | Build established: Scavenger-Tank 23983 | -7/Factory | First assault squad dispatched 24100 | -7/Factory | Core integrity fell below 50% 24233 | -7/Factory | Build established: Hauler-Tank 24300 | -7/Factory | Fabricated Hardcell Cannon (x2) 24301 | -7/Factory | Lost 3 allies 24456 | -7/Factory | Discovered exit to Factory (range 8) 24693 | -7/Factory | Fabricated P-60 Hacker (x2) 24707 | -7/Factory | Cargo convoy interrupted 24831 | -7/Factory | Lost 3 allies 25218 | -7/Factory | Lost 3 allies 25378 | -7/Factory | Specialist reinforcements revealed to be Infiltrators 25384 | -7/Factory | Lost 3 parts (2u1w) 25616 | -7/Factory | Discovered exit to Lower Caves (range 14) 25930 | -7/Factory | Build established: Hauler-Mutant 26114 | -7/Factory | Fabricated Enh. Gauss Cannon (x2) 26285 | -7/Factory | Fabricated P-60 Hacker (x2) 26357 | -7/Factory | Build established: Hauler-Skirmisher 26497 | -7/Factory | Repaired Broken Mni. Assault Cannon 26649 | -7/Factory | Identified exit to Garrison 26662 | -7/Factory | Garrison activated, responded to threat 26843 | -7/Factory | Hacker 4c assimilated hostile B-48 Gladiator 26848 | -7/Factory | High security lockdown imminent 26882 | -7/Factory | Lost 3 allies 26928 | -7/Factory | High security lockdown engaged 26934 | -7/Factory | Destroyed 7 combat bots 26996 | -7/Factory | Garrison activated, responded to threat 27047 | -7/Factory | Core integrity fell below 20% 27111 | -7/Factory | Entered Lower Caves 27112 | -7/Lower Caves | Identified exit to Lower Caves 27121 | -7/Lower Caves | Met a Warlord Commander 27122 | -7/Lower Caves | Learned location of Warlord (-5) 27123 | -7/Lower Caves | Warlord Commander delivered Encrypted Comm Array 27126 | -7/Lower Caves | Found Encrypted Comm Array 27250 | -7/Lower Caves | A Derelict revealed a hidden shortcut to a safe place 27399 | -7/Lower Caves | Build established: Scavenger-Skirmisher 27644 | -7/Lower Caves | Learned location of 1 exit from Factory 27776 | -7/Lower Caves | Encountered a Warlord checkpoint 27884 | -7/Lower Caves | Attracted the attention of an 0b10 outpost 28134 | -7/Lower Caves | Attracted the attention of an 0b10 checkpoint 28645 | -7/Lower Caves | Entered another Lower Caves area 28645 | -7/Lower Caves | Accompanied by 2 allies 28676 | -7/Lower Caves | Discovered exit to Factory (range 6) 28703 | -7/Lower Caves | Build established: Scavenger-Mutant 28775 | -7/Lower Caves | Encountered a Warlord checkpoint 29160 | -7/Lower Caves | Spotted B-75 Beast 29289 | -7/Lower Caves | Destroyed B-75 Beast 29317 | -7/Lower Caves | Lost 3 allies 29387 | -7/Lower Caves | Attracted the attention of an 0b10 checkpoint 29445 | -7/Lower Caves | Learned Factory emergency access door positions 29456 | -7/Lower Caves | Learned location of 2 exits from Factory 29650 | -7/Lower Caves | Build established: Mutant 29922 | -7/Lower Caves | Discovered new exit (range 7) 29930 | -7/Lower Caves | Identified exit to Zion 30341 | -7/Lower Caves | Entered Zion 30386 | -7/Zion | System corruption cleaned by Quarantine Array 30468 | -7/Zion | Discovered new exit (range 12) 30483 | -7/Zion | Identified exit to Proximity Caves 30556 | -7/Zion | Received a visual enhancement algorithm 30557 | -7/Zion | Ran a visual enhancement algorithm 30707 | -7/Zion | Given A8's code to call for help 30816 | -7/Zion | Learned Factory terminal intel 30826 | -7/Zion | Learned Factory stockpile data 30858 | -7/Zion | Gained Derelict followers 30964 | -7/Zion | Learned location of Testing (-2) 31173 | -7/Zion | Learned Factory emergency access door positions 31184 | -7/Zion | Found Unknown Piercing Weapon 31281 | -7/Zion | Found Prototype Device 31443 | -7/Zion | Met Imprinter 31869 | -7/Zion | Entered Proximity Caves 31869 | -6/Proximity Caves | Accompanied by 5 allies 31871 | -6/Proximity Caves | Spotter reported a threat 32186 | -6/Proximity Caves | Build established: Skirmisher 32361 | -6/Proximity Caves | Spotted B-75 Beast 32403 | -6/Proximity Caves | Destroyed B-75 Beast 32434 | -6/Proximity Caves | Lost 3 parts (3n) 32723 | -6/Proximity Caves | Learned location of Extension (-5) 32761 | -6/Proximity Caves | Build established: Scavenger-Skirmisher 32982 | -6/Proximity Caves | Discovered exit to Factory (range 12) 33003 | -6/Proximity Caves | Entered Factory 33003 | -6/Factory | Evolved 2 slots: Propulsion x1, Utility x1 33004 | -6/Factory | Identified exit to Factory 33004 | -6/Factory | Identified exit to Lower Caves 33007 | -6/Factory | Loaded intel: 26 terminal locations 33599 | -6/Factory | Build established: Hacker-Gunner 33900 | -6/Factory | Joined by Warlord Chimera squad 34346 | -6/Factory | Cargo convoy interrupted 34378 | -6/Factory | Identified CR-A16's Pointy Stick 34483 | -6/Factory | Fabricated Imp. Gravmag System? 34494 | -6/Factory | Build established: Hacker-Mutant 34527 | -6/Factory | Learned location of 2 exits from Archives 34648 | -6/Factory | Learned 12 Factory zone layouts 34673 | -6/Factory | Lost 4 parts (2n2w) 34733 | -6/Factory | Joined by Warlord Ranger squad 34786 | -6/Factory | Central database locked down 34967 | -6/Factory | Unchained authorized (DW-4LL) 35016 | -6/Factory | Joined by Warlord Dakka squad 35138 | -6/Factory | Joined by Warlord Ranger squad 35173 | -6/Factory | Garrison activated, responded to threat 35187 | -6/Factory | DW-4LL burst out of a wall 35194 | -6/Factory | System corruption reached 10% 35225 | -6/Factory | Lost 5 parts (2n3u) 35344 | -6/Factory | DW-4LL burst out of a wall 35442 | -6/Factory | Found Prototype Device 35442 | -6/Factory | Identified Active Sensor Suite 35455 | -6/Factory | Entered Lower Caves 35463 | -6/Lower Caves | Lost 5 allies 35467 | -6/Lower Caves | Encountered a Warlord checkpoint 35471 | -6/Lower Caves | Identified exit to Lower Caves 35809 | -6/Lower Caves | Build established: Skirmisher 36336 | -6/Lower Caves | Entered another Lower Caves area 36395 | -6/Lower Caves | P-60 Hacker assimilated allied GU-ZYO(S) 36452 | -6/Lower Caves | Encountered a Warlord checkpoint 36481 | -6/Lower Caves | Attracted the attention of an 0b10 checkpoint 36545 | -6/Lower Caves | Learned Factory stockpile data 37303 | -6/Lower Caves | Discovered new exit (range 14) 37640 | -6/Lower Caves | Attracted the attention of an 0b10 base 37697 | -6/Lower Caves | Lost 3 parts (1p1n1w) 37894 | -6/Lower Caves | Learned Research trap positions 37894 | -6/Lower Caves | Learned Extension trap positions 37990 | -6/Lower Caves | Build established: Scavenger-Skirmisher 38217 | -6/Lower Caves | Entered Data Miner 38217 | -6/Data Miner | Discovered new exit (range 6) 38239 | -6/Data Miner | Met Data Miner 38253 | -6/Data Miner | Learned location of Section 7 (-2) 38253 | -6/Data Miner | Acquired the access code to Warlord's prototype stash 38259 | -6/Data Miner | Received God Mode back door access code from Data Miner 38281 | -6/Data Miner | Interfaced with the Data Conduit 38291 | -6/Data Miner | Core integrity fell below 50% 38302 | -6/Data Miner | Core integrity fell below 20% 38306 | -6/Data Miner | Entered Proximity Caves 38309 | -5/Proximity Caves | Spotter reported a threat 38328 | -5/Proximity Caves | Lost 7 parts (1p4n1u1w) 38517 | -5/Proximity Caves | Learned Factory interactive machine intel 38545 | -5/Proximity Caves | Identified Phasing AFG 38635 | -5/Proximity Caves | Attracted the attention of an 0b10 checkpoint 38645 | -5/Proximity Caves | Entered Factory 38645 | -5/Factory | Evolved 2 slots: Propulsion x1, Utility x1 38646 | -5/Factory | Identified exit to Factory 38646 | -5/Factory | Identified exit to Upper Caves 38646 | -5/Factory | Identified exit to Extension 38650 | -5/Factory | Loaded intel: 297 machine locations 38651 | -5/Factory | Loaded intel: 56 interactive machine locations 38679 | -5/Factory | Joined by Warlord Dakka squad 38820 | -5/Factory | Joined by Warlord Ranger squad 38899 | -5/Factory | Identified exit to Garrison 38998 | -5/Factory | Central database locked down 39039 | -5/Factory | Garrison activated, responded to threat 39109 | -5/Factory | Build established: Derelict-Mutant 39294 | -5/Factory | Loaded intel: 64 trap records 39332 | -5/Factory | Learned Testing stockpile data 39359 | -5/Factory | Learned location of 1 exit from Testing 39383 | -5/Factory | Learned location of 1 exit from Extension 39384 | -5/Factory | Found Imp. Powered Armor 39407 | -5/Factory | Learned Testing scanalyzer intel 39433 | -5/Factory | Learned location of 3 exits from Factory 39442 | -5/Factory | Joined by Warlord Geek squad 39467 | -5/Factory | Learned Research trap positions 39512 | -5/Factory | Intercept squad dispatched 39523 | -5/Factory | Spotted Tracker 39536 | -5/Factory | Entered Extension 39538 | -5/Extension | Identified exit to Cetus 39540 | -5/Extension | Loaded intel: 13 trap records 39541 | -5/Extension | Loaded intel: 32 machine locations 39667 | -5/Extension | Energy Cycler disabled 39667 | -5/Extension | Rescued a captive Derelict 39667 | -5/Extension | Rescued a captive Derelict 39668 | -5/Extension | Rescued A7 39669 | -5/Extension | Rescued a captive Derelict 39671 | -5/Extension | Rescued a captive Derelict 39672 | -5/Extension | Rescued a captive Derelict 39678 | -5/Extension | Rescued a captive Derelict 39836 | -5/Extension | First assault squad dispatched 40033 | -5/Extension | Lost 5 allies 40177 | -5/Extension | Spotted B-75 Beast 40205 | -5/Extension | Destroyed B-75 Beast 40241 | -5/Extension | Spotted B-75 Beast 40246 | -5/Extension | Destroyed B-75 Beast 40335 | -5/Extension | Build established: Scavenger-Gunner 40386 | -5/Extension | Disrupted transfer network 40489 | -5/Extension | Learned location of 1 exit from Extension 40491 | -5/Extension | Disrupted transfer network 40534 | -5/Extension | Lost 3 parts (3n) 40550 | -5/Extension | Destroyed 10 combat bots 40602 | -5/Extension | Destroyed 8 combat bots 40634 | -5/Extension | Learned location of 1 exit from Quarantine 40691 | -5/Extension | Learned Research trap positions 40736 | -5/Extension | Entered Cetus 40736 | -5/Cetus | Accompanied by 1 ally (A7) 40737 | -5/Cetus | Identified exit to Archives 40739 | -5/Cetus | Loaded intel: 24 machine locations 40741 | -5/Cetus | Acquired a Cetus Manufacturing Module code from A7 40756 | -5/Cetus | Spotted Cetus Guard 40757 | -5/Cetus | Spotted Cetus Guard 40759 | -5/Cetus | Spotted Cetus Guard 40760 | -5/Cetus | Spotted Cetus Guard 40761 | -5/Cetus | Destroyed Cetus Guard 40770 | -5/Cetus | Allies destroyed Cetus Guard 40770 | -5/Cetus | Destroyed Cetus Guard 40773 | -5/Cetus | Allies destroyed Cetus Guard 40835 | -5/Cetus | Started Cetus Manufacturing Module 40850 | -5/Cetus | Escorted A7 to Cetus Mainframe 40860 | -5/Cetus | Manufactured an Enhanced Grunt 40885 | -5/Cetus | Manufactured an Enhanced Grunt 40910 | -5/Cetus | Manufactured an Enhanced Grunt 40935 | -5/Cetus | Manufactured an Enhanced Grunt 40960 | -5/Cetus | Manufactured an Enhanced Grunt 40996 | -5/Cetus | Spotted Cetus Guard 40996 | -5/Cetus | Spotted Cetus Guard 40998 | -5/Cetus | Spotted Cetus Guard 40998 | -5/Cetus | Spotted Cetus Guard 41013 | -5/Cetus | Destroyed Cetus Guard 41019 | -5/Cetus | Allies destroyed Cetus Guard 41020 | -5/Cetus | Destroyed Cetus Guard 41044 | -5/Cetus | Met Revision 17 41098 | -5/Cetus | Entered Archives 41098 | -5/Archives | Accompanied by 6 allies (A7) 41099 | -5/Archives | Identified exit to Hub_04(d) 41100 | -5/Archives | Loaded intel: 8 machine locations 41103 | -5/Archives | Received a hacking code to weaken MAIN.C 41252 | -5/Archives | Discovered exit to Hub_04(d) (range 16) 41369 | -5/Archives | Entered Hub_04(d) 41369 | -5/Hub_04(d) | Accompanied by 5 allies 41369 | -5/Hub_04(d) | Discovered exit to Factory (range 10) 41371 | -5/Hub_04(d) | Loaded intel: 116 machine locations 41411 | -5/Hub_04(d) | Identified exit to Garrison 41489 | -5/Hub_04(d) | Garrison activated, responded to threat 41685 | -5/Hub_04(d) | Lost 3 allies 41741 | -5/Hub_04(d) | Lost 3 parts (1n1u1w) 41777 | -5/Hub_04(d) | Identified exit to Garrison 41858 | -5/Hub_04(d) | Learned location of 1 exit from Research 41926 | -5/Hub_04(d) | Learned Quarantine stockpile data 41969 | -5/Hub_04(d) | First assault squad dispatched 41983 | -5/Hub_04(d) | Garrison activated, responded to threat 41986 | -5/Hub_04(d) | Learned location of 1 exit from Armory 42034 | -5/Hub_04(d) | Learned location of 1 exit from Testing 42096 | -5/Hub_04(d) | Learned Quarantine interactive machine intel 42129 | -5/Hub_04(d) | Learned Factory interactive machine intel 42140 | -5/Hub_04(d) | Intercept squad dispatched 42144 | -5/Hub_04(d) | Spotted Tracker 42149 | -5/Hub_04(d) | Network Hub disabled 42149 | -5/Hub_04(d) | Destroyed Tracker 42157 | -5/Hub_04(d) | Spotted Combat Programmer 42180 | -5/Hub_04(d) | Spotted Lightning 42182 | -5/Hub_04(d) | Spotted Lightning 42182 | -5/Hub_04(d) | Spotted Lightning 42224 | -5/Hub_04(d) | Network Hub disabled 42225 | -5/Hub_04(d) | System corruption reached 10% 42250 | -5/Hub_04(d) | Core integrity fell below 50% 42259 | -5/Hub_04(d) | Entered Factory 42259 | -4/Factory | Evolved 2 slots: Propulsion x1, Utility x1 42260 | -4/Factory | Identified exit to Upper Caves 42261 | -4/Factory | Identified exit to Armory 42261 | -4/Factory | Identified exit to Research 42262 | -4/Factory | Loaded intel: 281 machine locations 42263 | -4/Factory | Loaded intel: 54 interactive machine locations 42280 | -4/Factory | Lost 11 parts (5n3u3w) 42326 | -4/Factory | Discovered exit to Research (range 15) 42433 | -4/Factory | Build established: Hacker-Mutant 42498 | -4/Factory | Joined by Warlord Ranger squad 42509 | -4/Factory | First assault squad dispatched 42535 | -4/Factory | Spotted B-86 Titan 42605 | -4/Factory | Lost 3 parts (3u) 42847 | -4/Factory | Repaired Lgt. Antimatter Reactor? 42931 | -4/Factory | Fabricated Cmb. Gravmag System (x2) 42980 | -4/Factory | Learned location of 2 exits from Proximity Caves 42997 | -4/Factory | Repaired Antigrav System+? 43086 | -4/Factory | Identified exit to Garrison 43156 | -4/Factory | Build established: Hacker-Gunner 43201 | -4/Factory | Learned 8 Research zone layouts 43222 | -4/Factory | Learned Quarantine non-interactive machine intel 43291 | -4/Factory | Learned Research trap positions 43338 | -4/Factory | Unchained authorized (CL-0N3) 43400 | -4/Factory | Destroyed 7 combat bots 43517 | -4/Factory | Lost 3 parts (3n) 43568 | -4/Factory | Repaired Linear Gravjet+? 43581 | -4/Factory | M-13 Machinist reconstituted as H-81 Overseer 43583 | -4/Factory | System corruption reached 10% 43612 | -4/Factory | Entered Upper Caves 43613 | -4/Upper Caves | Identified exit to Upper Caves 43633 | -4/Upper Caves | Lost 3 parts (1p1u1w) 43679 | -4/Upper Caves | Build established: Scavenger-Gunner 43693 | -4/Upper Caves | Entered an active Warlord outpost 43708 | -4/Upper Caves | Learned Armory trap positions 43708 | -4/Upper Caves | Learned Extension terminal intel 43708 | -4/Upper Caves | Learned Armory garrison access intel 43927 | -4/Upper Caves | Learned 4 Research zone layouts 44312 | -4/Upper Caves | Attracted the attention of an 0b10 checkpoint 44432 | -4/Upper Caves | Entered another Upper Caves area 44524 | -4/Upper Caves | Entered a destroyed Warlord outpost 44933 | -4/Upper Caves | Found DCF Scrap (10 items) 45209 | -4/Upper Caves | Discovered new exit (range 9) 45225 | -4/Upper Caves | Identified exit to Zhirov 45228 | -4/Upper Caves | Entered Zhirov 45228 | -4/Zhirov | Discovered new exit (range 3) 45230 | -4/Zhirov | Identified exit to Proximity Caves 45243 | -4/Zhirov | Met Zhirov 45254 | -4/Zhirov | Found Alien Artifact 45254 | -4/Zhirov | Identified Integrated Dissipator 45254 | -4/Zhirov | Installed Integrated Dissipator, increased core heat dissipation (+20) 45263 | -4/Zhirov | Found Alien Artifact 45332 | -4/Zhirov | Zhirov requested help retrieving the SGEMP Prototype 45350 | -4/Zhirov | Entered Proximity Caves 45645 | -3/Proximity Caves | Build established: Gunner 45749 | -3/Proximity Caves | Spotted B-86 Titan 46020 | -3/Proximity Caves | Entered Research 46020 | -3/Research | Evolved 2 slots: Power x1, Propulsion x1 46021 | -3/Research | Identified exit to Quarantine 46023 | -3/Research | Loaded intel: 66 trap records 46024 | -3/Research | Loaded intel: 120 machine locations 46220 | -3/Research | Revision forces began assault on 0b10 46225 | -3/Research | Met up with Revision 17++ 46308 | -3/Research | Discovered new exit (range 4) 46335 | -3/Research | Build established: Hacker-Gunner 46401 | -3/Research | Central database locked down 46406 | -3/Research | Fabricated Enh. Hardcell Cannon? 46457 | -3/Research | Intercept squad dispatched 46549 | -3/Research | Identified exit to Garrison 46607 | -3/Research | Spotted B-86 Titan 46638 | -3/Research | Identified exit to Garrison 46720 | -3/Research | Research terminal network offline 46840 | -3/Research | Intercept squad dispatched 46869 | -3/Research | Repaired Broken Antigrav Array 46936 | -3/Research | Fabricated Assault Drone Bay (x1) 47011 | -3/Research | Repaired Cld. Antigrav System 47046 | -3/Research | Intercept squad dispatched 47065 | -3/Research | Spotted Tracker 47065 | -3/Research | Spotted Tracker 47066 | -3/Research | Spotted Tracker 47070 | -3/Research | Spotted Combat Programmer 47071 | -3/Research | Spotted Tracker 47073 | -3/Research | Combat Programmer assimilated allied H-77 Assassin 47075 | -3/Research | Identified Transdimensional Reconstructor 47075 | -3/Research | Warped through subspace 47091 | -3/Research | Entered Garrison 47092 | -3/Garrison | Loaded intel: 32 machine locations 47105 | -3/Garrison | Lost 7 allies 47205 | -3/Garrison | Triggered checkpoint 47216 | -3/Garrison | Spotted B-86 Titan 47250 | -3/Garrison | Destroyed 9 combat bots 47290 | -3/Garrison | Lost 6 parts (3p1n2u) 47358 | -3/Garrison | Core integrity fell below 50% 47371 | -3/Garrison | Discovered new exit (range 15) 47383 | -3/Garrison | Installed Relay Interface Framework 47493 | -3/Garrison | Triggered checkpoint 47523 | -3/Garrison | Garrison Relay disabled 47593 | -3/Garrison | Build established: Scavenger-Gunner 47659 | -3/Garrison | Discovered new exit (range 10) 47791 | -3/Garrison | Triggered checkpoint 47816 | -3/Garrison | Garrison Relay disabled 47934 | -3/Garrison | Destroyed B-86 Titan 47959 | -3/Garrison | Triggered checkpoint 47999 | -3/Garrison | Triggered checkpoint 48130 | -3/Garrison | Rewired Executioner 48138 | -3/Garrison | Rewired Executioner 48281 | -3/Garrison | Garrison Relay disabled 48508 | -3/Garrison | Garrison Relay disabled 48532 | -3/Garrison | Discovered new exit (range 8) 48570 | -3/Garrison | Entered Research 48570 | -3/Research | Accompanied by 4 allies 48571 | -3/Research | Loaded intel: 103 trap records 48572 | -3/Research | Loaded intel: 128 machine locations 48610 | -3/Research | Found Com. Tesla Bomb Launcher 48672 | -3/Research | Fabricated M-36 Artificer (x1) 48735 | -3/Research | Repaired Cmb. Antigrav System 48743 | -3/Research | Spotted B-86 Titan 48751 | -3/Research | Destroyed B-86 Titan 48776 | -3/Research | Build established: Bothacker-Gunner 48814 | -3/Research | Intercept squad dispatched 48842 | -3/Research | Spotted Tracker 48842 | -3/Research | Spotted Tracker 48852 | -3/Research | Allies destroyed Tracker 48853 | -3/Research | Destroyed Tracker 48880 | -3/Research | Found Exp. Targeting Computer 48886 | -3/Research | Found Exp. Phase Shifter 48902 | -3/Research | Spotted Combat Programmer 48903 | -3/Research | Spotted Combat Programmer 48910 | -3/Research | Destroyed Combat Programmer 48918 | -3/Research | Destroyed Combat Programmer 48931 | -3/Research | Found Corrupted Exp. Targeting Computer 48934 | -3/Research | Found Corrupted Prototype Energy Gun 49020 | -3/Research | Discovered exit to Quarantine (range 16) 49073 | -3/Research | Entered Quarantine 49073 | -3/Quarantine | Accompanied by 5 allies 49074 | -3/Quarantine | Identified exit to Research 49076 | -3/Quarantine | Loaded intel: 65 machine locations 49077 | -3/Quarantine | Loaded intel: 43 non-interactive machine locations 49078 | -3/Quarantine | Loaded intel: 22 interactive machine locations 49123 | -3/Quarantine | Found Alien Energy Cannon 49123 | -3/Quarantine | Identified Core Cannon 49222 | -3/Quarantine | Repaired Cmb. Antigrav System 49258 | -3/Quarantine | Repaired Antigrav Array+ 49292 | -3/Quarantine | Repaired Antigrav Array+ 49330 | -3/Quarantine | Repaired Corrupted Enh. Optical Array 49394 | -3/Quarantine | Scanned by Researcher 49417 | -3/Quarantine | Central database locked down 49417 | -3/Quarantine | Identified Immobilizer 49425 | -3/Quarantine | Cryocooling Duct disabled 49430 | -3/Quarantine | Intercept squad dispatched 49431 | -3/Quarantine | Repaired Broken Particle Reactor? 49431 | -3/Quarantine | Garrison activated, responded to threat 49440 | -3/Quarantine | Ambient heat levels rising (+20) 49440 | -3/Quarantine | Non-combat units ordered to evacuate 49442 | -3/Quarantine | Found Alien Artifact 49442 | -3/Quarantine | Identified Dimensional Node Initializer 49442 | -3/Quarantine | Initialized slip node 49446 | -3/Quarantine | Found Transdimensional Reconstructor 49448 | -3/Quarantine | Spotted Tracker 49452 | -3/Quarantine | Spotted Tracker 49471 | -3/Quarantine | Destroyed Tracker 49477 | -3/Quarantine | Found Alien Artifact 49477 | -3/Quarantine | Identified Hpw. Transdimensional Reconstructor 49477 | -3/Quarantine | Warped through subspace 49480 | -3/Quarantine | Lost 3 allies 49503 | -3/Quarantine | Lost 8 parts (2p4n1u1w) 49512 | -3/Quarantine | Core integrity fell below 20% 49526 | -3/Quarantine | Spotted Combat Programmer 49534 | -3/Quarantine | Identified exit to Garrison 49537 | -3/Quarantine | Entered Garrison 49538 | -3/Garrison | Loaded intel: 29 machine locations 49558 | -3/Garrison | Spotted B-86 Titan 49561 | -3/Garrison | Triggered checkpoint 49577 | -3/Garrison | Discovered exit to Research (range 18) 49583 | -3/Garrison | Destroyed by G-67 Veteran with Plasma Rifle Last Messages --------------- 49564_ Knocked back. 49565_ Triggered Stasis Trap. 49565_ A bubble of rippling energy engulfs the area. 49565_ Field strength at 76. 49565_ Field strength at 40. 49566_ Field strength at 4. 49567_ Stasis field depleted. 49569_ Cld. Antigrav System destroyed. 49569_ Detecting nearby RIF Installer. 49577_ EXIT=FOUND: RESEARCH 49578_ Cld. Antigrav System destroyed. 49579_ Adv. Recoil Stabilizer severed. 49582_ P-80 Master resets G-67 Veteran, system corruption cleaned. 49582_ L-61 Swordsman springs to life. [Achievement: 75k Club] Map ----- +----------------------------------------------------+ | ???????????????????????"?????"?"?????????# | | ???????????????????????"?????"""?????????# | | ???????????????????????"?????????????????# | | ???????????????????????"?????????????????# ## | | ???????????????????????"?????????????????# ## | | ?????????????????????????????????????????" | | ?????????????????????????????????????????" | | ?????????????????????????????????????????" | | ?????????????????????????????????????????" | | ?????????????????????????????????????????# "" % | | ??????????????????????#################### ## | | ??????????????????????# | | ??????????????????????# | | ??????????????????????# ################# | | ??????????????????????# #???????????????######""" | | ??????????????????????# #???????????????????????? | | ??????????????????????#c #???????????????????????? | | ??????????????????????#! #???????????????????????? | | ??????????????????????#g #???????????????????????? | | ??????????????????????# g#???????????????????????? | | ??????????????????????# c#???????????????????????? | | ??????????????#########g ##########??????????????? | | ??????????????# c #??????????????? | | ??????????????# c #??????????????? | | ??????????????# #??????????????? | | ??????????????# @ #??????????????? | | ??????????????# p #??????????????? | | ??????????????# #??????????????? | | ??????????????# #??????????????? | | ??????????????# g l#??????????????? | | ??????????????# g g #?????????????? | | ??????????????# g < l#?????????????? | | ??????????????# l#?????????????? | | ??????????????# g ##?????????????? | | ??????????????# #??????????????? | | ????????""????# g??????????????? | | ??????????T???# ##?????????????? | | ??????????????# #??????????????? | | ??????????????# #??????????????? | | ??????????????# #??????????????? | | ??????????????# #??????????????? | | ??????????????######### ##########??????????????? | | ??????????????????????# ????????????????????????? | | ?????????"""??????????# ????????????"""?????????? | | ?????????????????????? ????????????????????????? | | ?????????????????????? ????????????????????????? | | ???????????????????????##????????????????????????? | | ?????????????????????????????????????????????"???? | | ?????????????????????????????????????????????"???? | | ??"?????""""?????????????????????????????????"???? | +----------------------------------------------------+ Best States ------------- Heat Dissipation 104 Coolant Potential 100 Energy Generation 43 Energy Capacity 580 Matter Stores 300 Matter Capacity 550 Sight Range 22 Robot Scan Range 20 Terrain Scan Range 20 Terrain Scan Density 110 Jamming Range 12 Additional Mass Support 12 Corruption Containment 8 Armor Coverage 400 Resistance: KI 20 Propulsion Shielding 66 Utility Shielding 66 Weapon Cycling 25 Phase Shifting 20 Evasion (%) 69 Targeting Accuracy 18 Melee Accuracy 6 Target Analysis 12 Core Analysis 6 Armor Integrity Analysis 40 Recoil Reduction 6 Matter Filtering 50 Salvage Targeting 4 Offensive Hacking 40 Defensive Hacking 38 Relay Coupler Types 2 Relay Coupler Value 33 Authchip Count 2 Item Schematics ----------------- Lgt. Fission Core | -8/Materials | Scanalyzed Exp. Sensor Array | -8/Materials | Scanalyzed Imp. Light Cannon | -8/Materials | Scanalyzed Plasma Cutter | -8/Materials | Scanalyzed Aerolev Unit | -8/Materials | Scanalyzed Hacking Suite | -8/Materials | Scanalyzed Rocket Launcher | -8/Materials | Scanalyzed Hrd. Light Armor Plating | -8/Materials | Scanalyzed Hcp. Matter Pod | -8/Materials | Scanalyzed Core Shielding | -8/Materials | Scanalyzed Visual Processing Unit | -8/Materials | Extracted Scythe | -8/Materials | Extracted Huge Storage Unit | -8/Materials | Extracted Imp. Terrain Scan Processor | -8/Materials | Extracted Imp. Treads | -8/Materials | Extracted Imp. Heat Sink | -8/Materials | Extracted EM Pulse Cannon | -8/Materials | Extracted Spread Laser | -8/Materials | Extracted Flak Cannon | -8/Materials | Scanalyzed Gravmag System | -8/Materials | Scanalyzed Recoil Stabilizer | -8/Materials | Scanalyzed Reactive Plating | -8/Materials | Scanalyzed Mic. Nuclear Core | -8/Materials | Scanalyzed Rnf. Deuterium Engine | -8/Materials | Scanalyzed Imp. Assault Rifle | -8/Materials | Scanalyzed Gauss Rifle | -8/Materials | Scanalyzed Com. Battery | -8/Materials | Extracted Hpw. Tractor Beam | -8/Materials | Scanalyzed Med. Battery | -8/Materials | Extracted Gauss Cannon | -7/Factory | Hacked Lrg. Storage Unit | -7/Factory | Hacked Cmb. Airjet | -7/Factory | Scanalyzed Mni. Assault Cannon | -7/Factory | Scanalyzed Gravity Neutralizer | -7/Factory | Scanalyzed Hyp. Gauss Cannon | -7/Factory | Hacked Hvy. Mass Driver | -7/Zion | Archive Flexi-carbon Leg | -7/Zion | Archive Arc Projector | -7/Zion | Archive Imp. Trap Scanner | -7/Zion | Archive Component Analysis Suite | -7/Zion | Archive Imp. Reaction Control System | -7/Zion | Archive Plasma Cannon | -7/Zion | Archive Imp. Hardlight Generator | -7/Zion | Archive Kinecellerator | -7/Zion | Archive Imp. Launcher Guidance Computer | -7/Zion | Archive Lrn. Tractor Beam | -7/Zion | Archive Imp. Medium Armor Plating | -7/Zion | Archive Imp. System Shield | -7/Zion | Archive Hvy. Ion Cannon | -7/Zion | Archive Weapon Cycler | -7/Zion | Archive Adv. Sensor Array | -7/Zion | Archive Enh. Gauss Cannon | -6/Factory | Scanalyzed Imp. Propulsion Shielding | -6/Factory | Scanalyzed Combat Drone Bay | -6/Data Miner | Free Lgt. Regenerative Plating | -6/Data Miner | Free Cld. Nuclear Pulse Thruster | -6/Data Miner | Free Prc. Matter Filter | -6/Data Miner | Free Thunder Hammer | -6/Data Miner | Free Impulse Thruster | -6/Data Miner | Free Adv. Transmission Jammer | -6/Data Miner | Free Dispersion Rifle | -6/Data Miner | Free Smartbomb Launcher | -6/Data Miner | Free Adv. Reaction Control System | -6/Data Miner | Free Impulse Thruster Array | -6/Data Miner | Free Linear Accelerator | -5/Factory | Hacked Weapon Mount | -4/Factory | Hacked Adv. Recoil Stabilizer | -4/Factory | Hacked Cmb. Gravmag System | -4/Factory | Hacked Assault Drone Bay | -4/Zhirov | Free Exp. Heat Sink | -4/Zhirov | Free Exp. Optical Array | -4/Zhirov | Free Imp. Arc Thrower | -4/Zhirov | Free Lgt. Antimatter Cannon | -3/Research | Scanalyzed Antigrav System | -3/Research | Scanalyzed Adv. Coolant Injector | -3/Research | Scanalyzed Lgt. Particle Reactor | -3/Research | Scanalyzed Antigrav Array | -3/Research | Scanalyzed Enh. Hardcell Cannon | -3/Research | Scanalyzed Cmb. Linear Gravjet | -3/Research | Hacked Hvy. Neutron Cannon | -3/Quarantine | Archive Hvy. Tesla Rifle | -3/Quarantine | Archive Exp. Focal Shield | -3/Quarantine | Archive Enh. Coil Gun | -3/Quarantine | Archive Cld. Plasma Rifle | -3/Quarantine | Archive Cld. Antigrav System | -3/Quarantine | Scanalyzed Adv. Remote Datajack | -3/Quarantine | Scanalyzed Adv. Shield Generator | -3/Quarantine | Scanalyzed Robot Schematics ------------------ G-47 Trooper | -7/Factory | Hacked P-60 Hacker | -7/Factory | Hacked R-06 Scavenger | -7/Zion | Archive B-48 Gladiator | -7/Zion | Archive A-15 Conveyor | -6/Data Miner | Free R-10 Processor | -6/Data Miner | Free E-15 Imp | -6/Data Miner | Free G-50 Soldier | -6/Data Miner | Free L-61 Swordsman | -6/Data Miner | Free M-36 Artificer | -6/Data Miner | Free C-55 Analyst | -3/Quarantine | Hacked Fabricated ------------ H-55 Commando | x2 | -7/Factory | Preloaded Imp. Cooling System | x2 | -7/Factory | Preloaded G-47 Trooper | x3 | -7/Factory | Authchip Hardcell Cannon | x2 | -7/Factory | Preloaded P-60 Hacker | x2 | -7/Factory Enh. Gauss Cannon | x2 | -7/Factory | Preloaded P-60 Hacker | x2 | -7/Factory Imp. Gravmag System | x2 | -6/Factory | Preloaded Cmb. Gravmag System | x2 | -4/Factory Enh. Hardcell Cannon | x2 | -3/Research | Preloaded Assault Drone Bay | x1 | -3/Research M-36 Artificer | x1 | -3/Research | Authchip Repaired ---------- Lgt. Cannon | 7% | -10/Materials Propulsion Shielding | 32% | -10/Materials Lgt. Treads | 8% | -8/Materials Lgt. Treads | 13% | -8/Materials Lgt. Treads | 34% | -8/Materials Lgt. Cannon | 54% | -8/Materials Lgt. Cannon | 65% | -8/Materials Imp. Light Cannon | 39% | -8/Materials Imp. Light Cannon | 17% | -8/Materials Flak Cannon | 25% | -8/Materials Flak Cannon | 57% | -8/Materials Flak Cannon | 1% | -8/Materials Gauss Cannon | 4% | -7/Factory Gauss Rifle | 2% | -7/Factory Imp. Hover Unit | 94% | -7/Factory | Corrupted Gravmag System | 82% | -7/Factory Gravmag System | 82% | -7/Factory Mni. Assault Cannon | 99% | -7/Factory | Broken Lgt. Antimatter Reactor | 34% | -4/Factory Antigrav System | 36% | -4/Factory Linear Gravjet | 14% | -4/Factory Antigrav Array | 99% | -3/Research | Broken Cld. Antigrav System | 70% | -3/Research Cmb. Antigrav System | 55% | -3/Research Cmb. Antigrav System | 50% | -3/Quarantine Antigrav Array | 50% | -3/Quarantine Antigrav Array | 50% | -3/Quarantine Enh. Optical Array | 77% | -3/Quarantine | Corrupted Particle Reactor | 53% | -3/Quarantine | Broken Studied --------- Flak Cannon | -8/Materials | Hacked Airjet | -7/Factory | Hacked Gauss Cannon | -7/Factory | Hacked Imp. Hover Unit | -7/Factory | Hacked Gravmag System | -7/Factory | Hacked Mic. Nuclear Core | -7/Factory | Hacked Cmb. Airjet | -6/Factory | Hacked Linear Gravjet | -5/Factory | Hacked Antigrav System | -5/Factory | Hacked Cmb. Gravmag System | -3/Research | Hacked Hardcell Cannon | -3/Research | Hacked Railgun | -3/Research | Hacked Lgt. Particle Reactor | -3/Research | Hacked Linear Accelerator | -3/Research | Hacked Antigrav Array | -3/Research | Hacked Imp. Antigrav System | -3/Quarantine | Hacked Alien Tech Used ----------------- Integrated Dissipator Transdimensional Reconstructor Core Cannon Dimensional Node Initializer High-powered Transdimensional Reconstructor Achievements -------------- 75k Club Bullet Installation Explosive Keycard Immobile And Lovin' It Join The Dark Side Late Bloomer Mindtrick Some Acronyms Are Better Than Others Squad Leader Challenges ------------ None Game ------ Seed SuperdenseRocketWheel Manual? 0 Play Time 09:35:40 Cumulative 645.8 hours Start 2025.11.25 @ 03:05:46 End 2025.12.05 @ 14:06:10 Sessions 5 Manual Loads 0 Difficulty Rogue Special Mode None Game No. 324 Rogue 324 Adventurer 0 Explorer 0 Win Type - Total 7 Types 3/0/2/1/0/0/0/0/0/1 Lore% 87 Gallery% 78 Achievement% 49 Wizard Run 0 Options --------- Layout 2 ASCII 0 Keyboard 1 Movement Vi Keybinds 0 Fullscreen 1 Font 16/Proggy Map View 55x47 Zoom Use 0% Tactical HUD 1 Map Filters NONE Filters NONE Steam 0 RUN: a4e54770-ffd8-49c8-be2b-17cf7e4da404